Body Name,Body,Service Level,Expense Type,Expense Code,Narrative,Date,Transaction Number,Amount,Capital and Revenue,Supplier Name,Supplier ID
South Ribble Council,http://statistics.data.gov.uk/doc/local-authority/30UN,Area 3 - Parks/Leyland East West,Operational Furniture & Equip,4019, 2 x ALL ROUNDER 8 SEATER PICNIC BENCH 2 x CODE LL1133TK,08/02/2017,0000429645,952.00,Revenue,A & E LEISURE LIMITED,00102694
South Ribble Council,http://statistics.data.gov.uk/doc/local-authority/30UN,Area 3 - Parks/Leyland East West,Operational Furniture & Equip,4019,2 X ALL ROUND - 8 PICNIC BENCH - CODE L113TK PLEASE DELIVER WITH OTHER ORDER - PUR0027606,08/02/2017,0000429646,"1,080.00",Revenue,A & E LEISURE LIMITED,00102694
South Ribble Council,http://statistics.data.gov.uk/doc/local-authority/30UN,Information Services,Peripherals,4248,Additional charge to SRBC for exceeding Data Storage & Recovery quota for period October 2016 - December 2016,08/02/2017,0000429684,511.56,Revenue,ABRITAS LTD,130710
South Ribble Council,http://statistics.data.gov.uk/doc/local-authority/30UN,Information Services,Peripherals,4246,"2 x Epson Perfection V550 photo, as per quote",15/02/2017,0000429938,306.00,Revenue,ACS SYSTEMS UK LTD,00070166
South Ribble Council,http://statistics.data.gov.uk/doc/local-authority/30UN,Revenues Plus,Financial,4811,post office trans,08/02/2017,0000429742,813.43,Revenue,ALLPAY LTD,00122276
South Ribble Council,http://statistics.data.gov.uk/doc/local-authority/30UN,Revenues Plus,Financial,4811,paypoint,08/02/2017,0000429742,164.41,Revenue,ALLPAY LTD,00122276
South Ribble Council,http://statistics.data.gov.uk/doc/local-authority/30UN,Revenues Plus,Financial,4811,webconn,08/02/2017,0000429742,46.05,Revenue,ALLPAY LTD,00122276
South Ribble Council,http://statistics.data.gov.uk/doc/local-authority/30UN,Regeneration,Other Misc,4861,"The production of 2,000 Heritage Walk leaflets (as per email)",15/02/2017,0000429846,300.00,Revenue,AMJ LTD (THE STATIONERY STORE),00096946
South Ribble Council,http://statistics.data.gov.uk/doc/local-authority/30UN,Shared Assurance Services,Professional Fees,4510,"procurement, broking and consultancy fees",24/02/2017,0000430076,"2,000.00",Revenue,Aon UK Limited Accounts Division,132142
South Ribble Council,http://statistics.data.gov.uk/doc/local-authority/30UN,Shared Assurance Services,Employee Related Insurance,1800,"policy renewal:  property, computer, contract works, crime",24/02/2017,0000430077,"41,619.35",Revenue,Aon UK Limited Accounts Division,132142
South Ribble Council,http://statistics.data.gov.uk/doc/local-authority/30UN,Shared Assurance Services,Professional Fees,4510,"procurement, broking and consultancy fees",24/02/2017,0000430086,"1,625.00",Revenue,Aon UK Limited Accounts Division,132142
South Ribble Council,http://statistics.data.gov.uk/doc/local-authority/30UN,Shared Assurance Services,Professional Fees,4510,"procurement, broking and consultancy fees",24/02/2017,0000430087,"2,750.00",Revenue,Aon UK Limited Accounts Division,132142
South Ribble Council,http://statistics.data.gov.uk/doc/local-authority/30UN,Shared Assurance Services,Employee Related Insurance,1800,"policy renewal:  property, computer, contract works, crime",24/02/2017,0000430088,"4,947.99",Revenue,Aon UK Limited Accounts Division,132142
South Ribble Council,http://statistics.data.gov.uk/doc/local-authority/30UN,Shared Assurance Services,Employee Related Insurance,1800,"policy renewal:  property, computer, contract works, crime",24/02/2017,0000430089,"2,213.71",Revenue,Aon UK Limited Accounts Division,132142
South Ribble Council,http://statistics.data.gov.uk/doc/local-authority/30UN,Shared Assurance Services,Employee Related Insurance,1800,"policy renewal:  property, computer, contract works, crime",24/02/2017,0000430090,656.02,Revenue,Aon UK Limited Accounts Division,132142
South Ribble Council,http://statistics.data.gov.uk/doc/local-authority/30UN,Shared Assurance Services,Employee Related Insurance,1800,"policy renewal:  property, computer, contract works, crime",24/02/2017,0000430091,"3,657.50",Revenue,Aon UK Limited Accounts Division,132142
South Ribble Council,http://statistics.data.gov.uk/doc/local-authority/30UN,Neighbourhood Admin & Support,Clothing- Uniforms & Laundry,4410,GLOVES � RUBBER RIGGERS (SIZE 9 ) - 15A1009,17/02/2017,0000430028,256.32,Revenue,ARCO,00014096
South Ribble Council,http://statistics.data.gov.uk/doc/local-authority/30UN,HR & Communications,Training Expense-Course Fees,1402,ONE PLACE ON THE P405 MANAGEMENT OF ASBESTOS IN BULIDING COURSE 23-26 JANUARY 2017 NAME REDACTED,08/02/2017,0000429702,695.00,Revenue,ASBESTOS AWARENESS & ABATEMENT TRAINING CO,132154
South Ribble Council,http://statistics.data.gov.uk/doc/local-authority/30UN,HR & Communications,Training Expense-Course Fees,1402,examm fee,08/02/2017,0000429702,155.00,Revenue,ASBESTOS AWARENESS & ABATEMENT TRAINING CO,132154
South Ribble Council,http://statistics.data.gov.uk/doc/local-authority/30UN,Housing,Cap Grant- Improve Grants,C570,DFG Works to bathroom at ADDRESS REDACTED as per your quote Amount - 7175.00,08/02/2017,0000429706,"7,175.00",Revenue,ASH BARN CONSTRUCTION LTD,00081278
South Ribble Council,http://statistics.data.gov.uk/doc/local-authority/30UN,Property Services,Rep & Maint Premises,2020,Reimbursement for the cost of the hire of a heater for 7 weeks following the failure of heating at ADDRESS REDACTED,03/02/2017,0000429644,"1,600.00",Revenue,AVACAB TAXIS LTD,00109859
South Ribble Council,http://statistics.data.gov.uk/doc/local-authority/30UN,Area 2 - Waste Transport/Eastern & Central Teams,Cap Vehicles,C440,SUPPLY ELECTRIC GATOR,08/02/2017,0000429628,"9,725.00",Revenue,BALMERS GM LTD,00016023
South Ribble Council,http://statistics.data.gov.uk/doc/local-authority/30UN,Information Services,Stationery,4136,1510077  Rotadex  Lever Arch Filing Rack 5 section,22/02/2017,0000430119,193.20,Revenue,BANNER GROUP LTD,00081485
South Ribble Council,http://statistics.data.gov.uk/doc/local-authority/30UN,Information Services,Stationery,4137,3440816 Gussett  A4 Envelopes,22/02/2017,0000430119,8.32,Revenue,BANNER GROUP LTD,00081485
South Ribble Council,http://statistics.data.gov.uk/doc/local-authority/30UN,Information Services,Stationery,4136,9670022   Labels 14 per sheet,22/02/2017,0000430119,6.15,Revenue,BANNER GROUP LTD,00081485
South Ribble Council,http://statistics.data.gov.uk/doc/local-authority/30UN,Information Services,Stationery,4136,6398394  Letter tray jumbo,22/02/2017,0000430119,7.70,Revenue,BANNER GROUP LTD,00081485
South Ribble Council,http://statistics.data.gov.uk/doc/local-authority/30UN,Information Services,Stationery,4136,6352934  Letter tray standard,22/02/2017,0000430119,6.86,Revenue,BANNER GROUP LTD,00081485
South Ribble Council,http://statistics.data.gov.uk/doc/local-authority/30UN,Information Services,Stationery,4136,9095004  Banner self stick  notes pk 12,22/02/2017,0000430119,49.45,Revenue,BANNER GROUP LTD,00081485
South Ribble Council,http://statistics.data.gov.uk/doc/local-authority/30UN,Property Services,Rep & Maint Premises,2020,Please undertake the work at Hurst Grange Park stables as per your quotation dated 30th November 2016,10/02/2017,0000429827,503.25,Revenue,BELEC ELECTRICAL LTD,130290
South Ribble Council,http://statistics.data.gov.uk/doc/local-authority/30UN,Property Services,Rep & Maint Premises,2020,Annual Contract 2016/017 Electrical Testing and Electrical  Installation Test at Civic Centre,15/02/2017,0000429848,368.00,Revenue,BELEC ELECTRICAL LTD,130290
South Ribble Council,http://statistics.data.gov.uk/doc/local-authority/30UN,Property Services,Rep & Maint Premises,2020,Annual Contract 2016/2017 Electrical Testing and Electrical  Installation Test at Higher Walton Community Centre,15/02/2017,0000429851,368.00,Revenue,BELEC ELECTRICAL LTD,130290
South Ribble Council,http://statistics.data.gov.uk/doc/local-authority/30UN,Healthy Communities,Other Misc,4851,6 Pumps 216 Glue Less Patches 10 Multi Tools 10 Dumbell Spanners,01/02/2017,0000429394,268.00,Revenue,BILL NICKSON CYCLES,00009496
South Ribble Council,http://statistics.data.gov.uk/doc/local-authority/30UN,Development Enterprise & Comm Mgnt,Other Misc,4851,"Various Sports equipment for the Mini Mover Programme491.75 ( no VAT )",08/02/2017,0000429707,491.75,Revenue,Bishop Sports & Leisure Ltd,131843
South Ribble Council,http://statistics.data.gov.uk/doc/local-authority/30UN,Property Services,Rep & Maint Premises,2020,Please provide drawings for the bin store at Worden Park,08/02/2017,0000429737,300.00,Revenue,BRAMLEY-PATE & PARTNERS,00093091
South Ribble Council,http://statistics.data.gov.uk/doc/local-authority/30UN,Information Services,Peripherals,4246,BCS Approved Centre Accreditation renewal Jan 17 - Jan 18,22/02/2017,0000430103,420.00,Revenue,BRITISH COMPUTER SOCIETY,00072627
South Ribble Council,http://statistics.data.gov.uk/doc/local-authority/30UN,Area 3 - Parks/Leyland East West,Grounds Maint Cntrctrs Chgs,4657,4 NO. DERBY SLIMLINE BINS IN BLACK,17/02/2017,0000429845,740.00,Revenue,BROXAP LTD,00028736
South Ribble Council,http://statistics.data.gov.uk/doc/local-authority/30UN,Neighbourhood Admin & Support,Materials General,4040,40LT HERCULES LITTER BIN (BLUE) - BX45 2556-40 QUOTE REF:352447/#REV2/SMI,17/02/2017,0000429899,"1,399.90",Revenue,BROXAP LTD,00028736
South Ribble Council,http://statistics.data.gov.uk/doc/local-authority/30UN,Area 2 - Waste Transport/Eastern & Central Teams,Materials General,4040,hire of refuse vehicle (1 weeks hire) - OW1160,08/02/2017,0000429662,"1,190.00",Revenue,C P DAVIDSON & SONS LTD,00043122
South Ribble Council,http://statistics.data.gov.uk/doc/local-authority/30UN,Shared Assurance Services,Professional Fees,4512,Participation in the NFI National Exercise 2016/17,01/02/2017,0000429583,"2,200.00",Revenue,Cabinet Office SSCLAccounts Receivable,132109
South Ribble Council,http://statistics.data.gov.uk/doc/local-authority/30UN,Revenues Plus,Professional Fees,4520,Capita end of year webinars,10/02/2017,0000429860,900.00,Revenue,CAPITA BUSINESS SERVICES LTD,00122179
South Ribble Council,http://statistics.data.gov.uk/doc/local-authority/30UN,Revenues Plus,Peripherals,4242,LA Data Share Programme,10/02/2017,0000429861,"2,294.13",Revenue,CAPITA BUSINESS SERVICES LTD,00117948
South Ribble Council,http://statistics.data.gov.uk/doc/local-authority/30UN,Homelessness,Contributions,4730,"Cotswold House Flat 20 block booking for January 2017, 31 days at 35.28 1,093.28 + VAT",17/02/2017,0000429990,"1,093.28",Revenue,CHORLEY BOROUGH COUNCIL,00017352
South Ribble Council,http://statistics.data.gov.uk/doc/local-authority/30UN,Area 2 - Waste Transport/Eastern & Central Teams,External Contractors Charges,4570,SPEC REPAIR - PO13UUM - JFC8025,17/02/2017,0000429420,348.56,Revenue,CICELEY COMMERCIALS LTD,00059381
South Ribble Council,http://statistics.data.gov.uk/doc/local-authority/30UN,Area 2 - Waste Transport/Eastern & Central Teams,External Contractors Charges,4570,SPEC REPAIR - JFC8145 - PO13UUM,22/02/2017,0000430149,859.62,Revenue,CICELEY COMMERCIALS LTD,00059381
South Ribble Council,http://statistics.data.gov.uk/doc/local-authority/30UN,Shared Assurance Services,Training Expense-Course Fees,1402,"Assurance on governance and the governance Statement Workshop 1st March, York 345+VAT",24/02/2017,0000430168,295.00,Revenue,CIPFA BUSINESS LTD,00017187
South Ribble Council,http://statistics.data.gov.uk/doc/local-authority/30UN,Information Services,Peripherals,4246,Additional IP address as per call number 1333269,03/02/2017,0000429651,550.00,Revenue,CIVICA UK LTD,00102717
South Ribble Council,http://statistics.data.gov.uk/doc/local-authority/30UN,Information Services,Peripherals,4246,Whitelist IP Address,08/02/2017,0000429728,350.00,Revenue,CIVICA UK LTD,00102717
South Ribble Council,http://statistics.data.gov.uk/doc/local-authority/30UN,ZSUSPShared Financial Services,Peripherals,4248,Civica Financials Licence Support and Maintenance for the period 1 April 2017 to 31 March 2018,24/02/2017,0000430061,"13,938.27",Revenue,CIVICA UK LTD,00102717
South Ribble Council,http://statistics.data.gov.uk/doc/local-authority/30UN,HR & Communications,Training Expense-Course Fees,1408,MASSAGE AND ACCUPRESSURE SERVICES FOR THE HEALTH AND WELLBEING DAY 26TH JANUARY 2017,03/02/2017,0000429579,380.00,Revenue,Cloudnine Bodyworks,132133
South Ribble Council,http://statistics.data.gov.uk/doc/local-authority/30UN,Property Services,Rep & Maint Premises,2020,Provide fit a replacement water boiler  with an  insanta WA5 boiler to the 3rd floor kitchen at the Civic Centre as per quotation,24/02/2017,0000430062,565.00,Revenue,COMMERCIAL KITCHEN SERVICES LTD,00019538
South Ribble Council,http://statistics.data.gov.uk/doc/local-authority/30UN,Property Services,Rep & Maint Premises,2020,attend ADDRESS REDACTED to measure up supply & fit a new exterior door. Please Contact NAME REDACTED 01772 315886,22/02/2017,0000430048,172.50,Revenue,COOPER BESPOKE JOINERY LTD,00104456
South Ribble Council,http://statistics.data.gov.uk/doc/local-authority/30UN,Property Services,Rep & Maint Premises,2020,materials,22/02/2017,0000430048,93.50,Revenue,COOPER BESPOKE JOINERY LTD,00104456
South Ribble Council,http://statistics.data.gov.uk/doc/local-authority/30UN,Housing,Cap Grant- Improve Grants,C570,Remedial DFG works at ADDRESS REDACTED,17/02/2017,0000430070,"3,035.00",Revenue,Cornerstone Building & Maintenance Ltd,131383
South Ribble Council,http://statistics.data.gov.uk/doc/local-authority/30UN,HR & Communications,Training Expense-Course Fees,1402,PLEASE BOOK 2 PLACES FOR NAMES REDACTED ONTO THE `HOW TO COMMUNICATE IN A DIGITAL WORLD COURSE,10/02/2017,0000429780,585.00,Revenue,CREATIVE COMMUNICATORS LTD,132175
South Ribble Council,http://statistics.data.gov.uk/doc/local-authority/30UN,Revenues Plus,Postage,4291,Mail Services Postage,01/02/2017,0000429578,590.04,Revenue,CRITIQOM,131053
South Ribble Council,http://statistics.data.gov.uk/doc/local-authority/30UN,HR & Communications,Training Expense-Course Fees,1408,BIKE PACKAGE FOR TOM PLUMMER,22/02/2017,0000430132,416.67,Revenue,CYCLESCHEME CO  UK,130237
South Ribble Council,http://statistics.data.gov.uk/doc/local-authority/30UN,Information Services,Peripherals,4245,Annual purchase order for Disaster Recovery Services for period 01/04/17 - 31/03/18,03/02/2017,0000429626,"2,454.89",Revenue,DAISY IT CONTINUITY and RESILIENCE SERVICES LTD,131708
South Ribble Council,http://statistics.data.gov.uk/doc/local-authority/30UN,Healthy Communities,Other Misc,4851,Delivery of cycling activity and bike maintenance - between September and January 2017,22/02/2017,0000429900,360.00,Revenue,David Boyle,132006
South Ribble Council,http://statistics.data.gov.uk/doc/local-authority/30UN,Area 2 - Waste Transport/Eastern & Central Teams,Materials General,4040,"1 half shaft, VO65 KRE, JFC8161. (NAME REDACTED)",01/02/2017,0000429535,616.61,Revenue,DENNIS EAGLE LTD,00019774
South Ribble Council,http://statistics.data.gov.uk/doc/local-authority/30UN,Information Services,Peripherals,4244,Fargo HDP5000 YMCK Ribbon - 500 print,08/02/2017,0000429750,169.98,Revenue,DIGITAL ID LTD,130641
South Ribble Council,http://statistics.data.gov.uk/doc/local-authority/30UN,Information Services,Peripherals,4244,Fargo HDP5000 Re-transfer film  -  1500 prints,08/02/2017,0000429750,122.00,Revenue,DIGITAL ID LTD,130641
South Ribble Council,http://statistics.data.gov.uk/doc/local-authority/30UN,Information Services,Peripherals,4244,Carriage,08/02/2017,0000429750,8.95,Revenue,DIGITAL ID LTD,130641
South Ribble Council,http://statistics.data.gov.uk/doc/local-authority/30UN,Regeneration,Capital Expenditure,C234,"Supply and install public art, gateway feature and bus shelters at station road, bamber bridge 202,500 + VAT",15/02/2017,0000429829,"24,000.00",Revenue,DP STRUCTURES LTD,00120485
South Ribble Council,http://statistics.data.gov.uk/doc/local-authority/30UN,Regeneration,Capital Expenditure,C234,"Supply and install public art, gateway feature and bus shelters at station road, bamber bridge 202,500 + VAT",15/02/2017,0000429841,"3,900.00",Revenue,DP STRUCTURES LTD,00120485
South Ribble Council,http://statistics.data.gov.uk/doc/local-authority/30UN,Neighbourhood Admin & Support,Materials General,4040,"40,000 BLACK SACKS PRINTED (@49.50/1000 - 250 PER BOX)",24/02/2017,0000429957,"1,868.63",Revenue,Durasak Ltd,132141
South Ribble Council,http://statistics.data.gov.uk/doc/local-authority/30UN,Property Services,Energy Costs,2303,sept - oct,03/02/2017,0000429655,243.98,Revenue,E.ON,00083441
South Ribble Council,http://statistics.data.gov.uk/doc/local-authority/30UN,Property Services,Energy Costs,2303,charge,03/02/2017,0000429655,40.00,Revenue,E.ON,00083441
South Ribble Council,http://statistics.data.gov.uk/doc/local-authority/30UN,Area 3 - Parks/Leyland East West,Operational Furniture & Equip,4019,1 x Evergreen Seat with black metalwork - no fixings required,17/02/2017,0000429943,575.00,Revenue,EARTH ANCHORS LTD,00020925
South Ribble Council,http://statistics.data.gov.uk/doc/local-authority/30UN,Area 3 - Parks/Leyland East West,Operational Furniture & Equip,4019,Delivery charge,17/02/2017,0000429943,68.00,Revenue,EARTH ANCHORS LTD,00020925
South Ribble Council,http://statistics.data.gov.uk/doc/local-authority/30UN,Information Services,Peripherals,4260,Information Services,08/02/2017,0000429814,"2,312.37",Revenue,EE Ltd,131653
South Ribble Council,http://statistics.data.gov.uk/doc/local-authority/30UN,HR & Communications,Training Expense-Course Fees,1406,MEMBER DEVELOPMENT TRAINING - CABINET PUBLIC SPEAKING (DATE TBC),24/02/2017,0000430162,975.00,Revenue,EMMA TAYLOR PRESENTS.CU.UK,00112943
South Ribble Council,http://statistics.data.gov.uk/doc/local-authority/30UN,Information Services,Publications,4142,1 year subscription renewal Estates Gazette March 2017 to Feb 2018,08/02/2017,0000429781,290.00,Revenue,ESTATES GAZETTE SUBSCRIPTIONS,00021319
South Ribble Council,http://statistics.data.gov.uk/doc/local-authority/30UN,Area 2 - Waste Transport/Eastern & Central Teams,Materials General,4040,"2 ADJUSTERS, 2 REAR LIGHTS, 1 FRONT LIGHT, 1 FILTER KIT, 9 BEARINGS  - PO16HMZ - JFC7745 - BO",17/02/2017,0000429901,470.48,Revenue,F R SHARROCK LTD,00034539
South Ribble Council,http://statistics.data.gov.uk/doc/local-authority/30UN,Area 2 - Waste Transport/Eastern & Central Teams,External Contractors Charges,4570,RESIDUAL WASTE - DECEMBER 2016,01/02/2017,0000429594,"41,017.97",Revenue,FCC Environment Services (UK) Ltd,131612
South Ribble Council,http://statistics.data.gov.uk/doc/local-authority/30UN,Area 2 - Waste Transport/Eastern & Central Teams,External Contractors Charges,4570,DRY RECYCLABLE NON-TERRACED DECEMBER 2016,01/02/2017,0000429594,"42,003.41",Revenue,FCC Environment Services (UK) Ltd,131612
South Ribble Council,http://statistics.data.gov.uk/doc/local-authority/30UN,Area 2 - Waste Transport/Eastern & Central Teams,External Contractors Charges,4570,DRY RECYCLABLE - TERRACED DECEMBER 2016,01/02/2017,0000429594,"1,995.32",Revenue,FCC Environment Services (UK) Ltd,131612
South Ribble Council,http://statistics.data.gov.uk/doc/local-authority/30UN,Area 2 - Waste Transport/Eastern & Central Teams,External Contractors Charges,4570,ORGANIC WASTE NON-TERRACED DECEMBER 2016,01/02/2017,0000429594,"29,109.43",Revenue,FCC Environment Services (UK) Ltd,131612
South Ribble Council,http://statistics.data.gov.uk/doc/local-authority/30UN,Area 2 - Waste Transport/Eastern & Central Teams,External Contractors Charges,4570,SCHEDULE 2 PROPERTIES - DECEMBER 2016,01/02/2017,0000429594,"1,666.50",Revenue,FCC Environment Services (UK) Ltd,131612
South Ribble Council,http://statistics.data.gov.uk/doc/local-authority/30UN,Area 2 - Waste Transport/Eastern & Central Teams,External Contractors Charges,4570,COMMERCIAL WASTE -  DECEMBER 2016,01/02/2017,0000429594,"6,522.89",Revenue,FCC Environment Services (UK) Ltd,131612
South Ribble Council,http://statistics.data.gov.uk/doc/local-authority/30UN,Area 2 - Waste Transport/Eastern & Central Teams,External Contractors Charges,4570,BULKY WASTE -  DECEMBER 2016,01/02/2017,0000429594,902.24,Revenue,FCC Environment Services (UK) Ltd,131612
South Ribble Council,http://statistics.data.gov.uk/doc/local-authority/30UN,Area 2 - Waste Transport/Eastern & Central Teams,External Contractors Charges,4570,WEEE COLLECTIONS - DECEMBER 2016,01/02/2017,0000429594,337.57,Revenue,FCC Environment Services (UK) Ltd,131612
South Ribble Council,http://statistics.data.gov.uk/doc/local-authority/30UN,Area 2 - Waste Transport/Eastern & Central Teams,External Contractors Charges,4570,CLINICAL WASTE - DECEMBER 2016,01/02/2017,0000429594,574.92,Revenue,FCC Environment Services (UK) Ltd,131612
South Ribble Council,http://statistics.data.gov.uk/doc/local-authority/30UN,Area 2 - Waste Transport/Eastern & Central Teams,External Contractors Charges,4570,ADDN PROPERTIES - DECEMBER 2016,01/02/2017,0000429594,717.33,Revenue,FCC Environment Services (UK) Ltd,131612
South Ribble Council,http://statistics.data.gov.uk/doc/local-authority/30UN,Area 2 - Waste Transport/Eastern & Central Teams,External Contractors Charges,4570,REPLACEMENT BINS - DECEMBER 2016,01/02/2017,0000429594,"5,000.00",Revenue,FCC Environment Services (UK) Ltd,131612
South Ribble Council,http://statistics.data.gov.uk/doc/local-authority/30UN,Area 2 - Waste Transport/Eastern & Central Teams,External Contractors Charges,4570,Additional Clinical Waste Collections December 2016,01/02/2017,0000429595,259.81,Revenue,FCC Environment Services (UK) Ltd,131612
South Ribble Council,http://statistics.data.gov.uk/doc/local-authority/30UN,Area 2 - Waste Transport/Eastern & Central Teams,External Contractors Charges,4570,ADDITIONAL CLINICAL WASTE COLLECTIONS JANUARY 2017,17/02/2017,0000429837,356.04,Revenue,FCC Environment Services (UK) Ltd,131612
South Ribble Council,http://statistics.data.gov.uk/doc/local-authority/30UN,Area 2 - Waste Transport/Eastern & Central Teams,External Contractors Charges,4570,RESIDUAL WASTE JANUARY 2017,17/02/2017,0000429928,"41,017.97",Revenue,FCC Environment Services (UK) Ltd,131612
South Ribble Council,http://statistics.data.gov.uk/doc/local-authority/30UN,Area 2 - Waste Transport/Eastern & Central Teams,External Contractors Charges,4570,DRY RECYCLABLE NON-TERRACED JANUARY 2017,17/02/2017,0000429928,"42,003.41",Revenue,FCC Environment Services (UK) Ltd,131612
South Ribble Council,http://statistics.data.gov.uk/doc/local-authority/30UN,Area 2 - Waste Transport/Eastern & Central Teams,External Contractors Charges,4570,DRY RECYCLABLE  TERRACED -JANUARY 2017,17/02/2017,0000429928,"1,995.32",Revenue,FCC Environment Services (UK) Ltd,131612
South Ribble Council,http://statistics.data.gov.uk/doc/local-authority/30UN,Area 2 - Waste Transport/Eastern & Central Teams,External Contractors Charges,4570,ORGANIC WASTE NON TERRACED - JANUARY 2017,17/02/2017,0000429928,"29,109.43",Revenue,FCC Environment Services (UK) Ltd,131612
South Ribble Council,http://statistics.data.gov.uk/doc/local-authority/30UN,Area 2 - Waste Transport/Eastern & Central Teams,External Contractors Charges,4570,SCHEDULE 2 PROPERTIES - JANUARY 2017,17/02/2017,0000429928,"1,666.50",Revenue,FCC Environment Services (UK) Ltd,131612
South Ribble Council,http://statistics.data.gov.uk/doc/local-authority/30UN,Area 2 - Waste Transport/Eastern & Central Teams,External Contractors Charges,4570,COMMERCIAL WASTE - JANUARY 2017,17/02/2017,0000429928,"6,522.89",Revenue,FCC Environment Services (UK) Ltd,131612
South Ribble Council,http://statistics.data.gov.uk/doc/local-authority/30UN,Area 2 - Waste Transport/Eastern & Central Teams,External Contractors Charges,4570,BULKY WASTE JANUARY 2017,17/02/2017,0000429928,902.24,Revenue,FCC Environment Services (UK) Ltd,131612
South Ribble Council,http://statistics.data.gov.uk/doc/local-authority/30UN,Area 2 - Waste Transport/Eastern & Central Teams,External Contractors Charges,4570,WEEE COLLECTIONS JANUARY 2017,17/02/2017,0000429928,337.57,Revenue,FCC Environment Services (UK) Ltd,131612
South Ribble Council,http://statistics.data.gov.uk/doc/local-authority/30UN,Area 2 - Waste Transport/Eastern & Central Teams,External Contractors Charges,4570,CLINICAL WASTE COLLECTIONS JANUARY 2017,17/02/2017,0000429928,574.92,Revenue,FCC Environment Services (UK) Ltd,131612
South Ribble Council,http://statistics.data.gov.uk/doc/local-authority/30UN,Area 2 - Waste Transport/Eastern & Central Teams,External Contractors Charges,4570,ADDITIONAL PROPERTIES JANUARY 2017,17/02/2017,0000429928,717.33,Revenue,FCC Environment Services (UK) Ltd,131612
South Ribble Council,http://statistics.data.gov.uk/doc/local-authority/30UN,Area 2 - Waste Transport/Eastern & Central Teams,External Contractors Charges,4570,REPLACEMENT BINS JANUARY 2017,17/02/2017,0000429928,"5,000.00",Revenue,FCC Environment Services (UK) Ltd,131612
South Ribble Council,http://statistics.data.gov.uk/doc/local-authority/30UN,Information Services,Peripherals,4248,"Annual licence renewal for AchieveForms, AchieveService & Payments module for period 23/03/17 - 22/03/18",15/02/2017,0000429680,"22,492.00",Revenue,FIRMSTEP,00114022
South Ribble Council,http://statistics.data.gov.uk/doc/local-authority/30UN,Neighbourhood Admin & Support,Materials General,4040, FOOTBALL PITCH LINE MARKER PAINT - PITCHMARKER Q2,15/02/2017,0000429865,696.00,Revenue,Fleet Line Markers Limited,131942
South Ribble Council,http://statistics.data.gov.uk/doc/local-authority/30UN,Area 3 - Parks/Leyland East West,Materials General,4040,86no: 3m Pro Deck 28 x 145 Grooved Balau with 2nd Grey anti slip inserts and reeded base.,01/02/2017,0000429521,"1,650.00",Revenue,GRIPDECK LTD,00119700
South Ribble Council,http://statistics.data.gov.uk/doc/local-authority/30UN,Area 3 - Parks/Leyland East West,Grounds Maint Cntrctrs Chgs,4657,36no: Plain Pro Deck 28 x 145 grooved (no anti slip) Balau wit reeded base. 3no: Deck - tile screw (Box of 200),01/02/2017,0000429521,"1,655.16",Revenue,GRIPDECK LTD,00119700
South Ribble Council,http://statistics.data.gov.uk/doc/local-authority/30UN,Area 3 - Parks/Leyland East West,Grounds Maint Cntrctrs Chgs,4657,Repair and covering safety surface at Kingsfold Playground - Teen Area.,08/02/2017,0000428226,"11,968.00",Revenue,GROUNDWORK LEISURE SERVICES LTD,130104
South Ribble Council,http://statistics.data.gov.uk/doc/local-authority/30UN,Area 3 - Parks/Leyland East West,Grounds Maint Cntrctrs Chgs,4657,Patch Repair on Gyrospire Surface - 9m2 includes the removal & disposal of the old surface.,08/02/2017,0000428402,400.00,Revenue,GROUNDWORK LEISURE SERVICES LTD,130104
South Ribble Council,http://statistics.data.gov.uk/doc/local-authority/30UN,Area 2 - Waste Transport/Eastern & Central Teams,Materials General,4040,FILTERS FOR STORES,08/02/2017,0000429698,515.18,Revenue,H & J SERVICES LTD,00114446
South Ribble Council,http://statistics.data.gov.uk/doc/local-authority/30UN,Area 2 - Waste Transport/Eastern & Central Teams,Materials General,4040,2 SENSORS - BIN 369 - GA,08/02/2017,0000429699,276.09,Revenue,H & J SERVICES LTD,00114446
South Ribble Council,http://statistics.data.gov.uk/doc/local-authority/30UN,Area 2 - Waste Transport/Eastern & Central Teams,Materials General,4040,"1x SWITCH, BIN NO 368. (NAME REDACTED)",08/02/2017,0000429701,318.27,Revenue,H & J SERVICES LTD,00114446
South Ribble Council,http://statistics.data.gov.uk/doc/local-authority/30UN,Area 2 - Waste Transport/Eastern & Central Teams,Materials General,4040,2 SENSORS - BIN 369 - GA,15/02/2017,0000429929,276.09,Revenue,H & J SERVICES LTD,00114446
South Ribble Council,http://statistics.data.gov.uk/doc/local-authority/30UN,Democratic Services,Other Misc,4970,ER2028 - Annual support for Eros Scanning & Maintenance - 6 users.Annual support for the period of 17 January 2017 to 16,10/02/2017,0000429792,"1,316.65",Revenue,HALAROSE LTD,00024358
South Ribble Council,http://statistics.data.gov.uk/doc/local-authority/30UN,Democratic Services,Other Misc,4421,1 March 2017 to 28 February 2018 Annual support and maintenance for Avantguard Semi Network License + 8 additional clients,10/02/2017,0000429834,"1,606.46",Revenue,HALAROSE LTD,00024358
South Ribble Council,http://statistics.data.gov.uk/doc/local-authority/30UN,Neighbourhood Admin & Support,Vehicle Running Costs,3132,"15,000 LITRES DIESEL (@0.9601 PER LITRE)",03/02/2017,0000429544,"14,377.55",Revenue,Hall Fuels trading name of WFL (UK) Ltd,00116758
South Ribble Council,http://statistics.data.gov.uk/doc/local-authority/30UN,Neighbourhood Admin & Support,Vehicle Running Costs,3132,"15,000 litres DIESEL (@0.9563 per litre)",17/02/2017,0000430031,"14,356.50",Revenue,Hall Fuels trading name of WFL (UK) Ltd,00116758
South Ribble Council,http://statistics.data.gov.uk/doc/local-authority/30UN,HR & Communications,Advertising,4848,VARIOUS PHOTO JOBS IN JANUARY 2017,08/02/2017,0000429445,450.00,Revenue,IAN ROBINSON,132041
South Ribble Council,http://statistics.data.gov.uk/doc/local-authority/30UN,Information Services,Capital Expenditure,C234,Quote ref :  South Ribble Upgrades 260216,15/02/2017,0000426253,"7,822.50",Revenue,IDOX PLC,00104485
South Ribble Council,http://statistics.data.gov.uk/doc/local-authority/30UN,Information Services,Peripherals,4248,Uniform ORB-it Service Agreement annual maintenance for period 01/04/17 - 31/03/18,15/02/2017,0000430001,"55,162.19",Revenue,IDOX PLC,00104485
South Ribble Council,http://statistics.data.gov.uk/doc/local-authority/30UN,Information Services,Peripherals,4248,LALM Lalpac Enterprise Server Edition maintenance for period 18/03/17 - 17/03/18,15/02/2017,0000430002,"4,698.85",Revenue,IDOX PLC,00104485
South Ribble Council,http://statistics.data.gov.uk/doc/local-authority/30UN,HR & Communications,Agency Fees,1121,FOR WORK CARRIED OUT BY NAME REDACTED THROUGHOUT 2017,01/02/2017,0000429481,"5,862.78",Revenue,IE RECRUITMENT,132140
South Ribble Council,http://statistics.data.gov.uk/doc/local-authority/30UN,HR & Communications,Agency Fees,1121,FOR WORK CARRIED OUT BY NAME REDACTED  THROUGHOUT 2017,01/02/2017,0000429482,"3,850.00",Revenue,IE RECRUITMENT,132140
South Ribble Council,http://statistics.data.gov.uk/doc/local-authority/30UN,HR & Communications,Agency Fees,1121,FOR WORK CARRIED OUT BY NAME REDACTED  THROUGHOUT 2017,17/02/2017,0000429944,"5,926.88",Revenue,IE RECRUITMENT,132140
South Ribble Council,http://statistics.data.gov.uk/doc/local-authority/30UN,HR & Communications,Agency Fees,1121,FOR WORK CARRIED OUT BY NAME REDACTED  THROUGHOUT 2017,17/02/2017,0000429945,"9,783.72",Revenue,IE RECRUITMENT,132140
South Ribble Council,http://statistics.data.gov.uk/doc/local-authority/30UN,Revenues Plus,Professional Fees,4520,Annual subscription to IRRV North West Forum Service January to December 2017,01/02/2017,0000429483,"1,095.00",Revenue,INST OF REVENUES RATING & VALUATION,00024950
South Ribble Council,http://statistics.data.gov.uk/doc/local-authority/30UN,HR & Communications,Payroll Suspense,1741,MEMBERSHIP SUBSCRIPTION FEE FOR NAME REDACTED MEMBERSHIP NUM - 033956 2017 SUBSCRIPTION,08/02/2017,0000429731,158.00,Revenue,INST OF REVENUES RATING & VALUATION,00024950
South Ribble Council,http://statistics.data.gov.uk/doc/local-authority/30UN,HR & Communications,Payroll Suspense,1741,MEMBERSHIP SUBSCRIPTION FEE FOR NAME REDACTED MEMBERSHIP NUM - 018072 2017 SUBSCRIPTION,08/02/2017,0000429731,158.00,Revenue,INST OF REVENUES RATING & VALUATION,00024950
South Ribble Council,http://statistics.data.gov.uk/doc/local-authority/30UN,HR & Communications,Payroll Suspense,1741,MEMBERSHIP SUBSCRIPTION FEE FOR NAME REDACTED MEMBERSHIP NUM - 022851 2017 SUBSCRIPTION,08/02/2017,0000429731,158.00,Revenue,INST OF REVENUES RATING & VALUATION,00024950
South Ribble Council,http://statistics.data.gov.uk/doc/local-authority/30UN,Neighbourhood Admin & Support,Materials General,4040,QC10 - QUICK SET CONCRETE,01/02/2017,0000429545,"1,228.64",Revenue,INSTARMAC GROUP PLC,00024905
South Ribble Council,http://statistics.data.gov.uk/doc/local-authority/30UN,Regeneration,Capital Expenditure,C234,"Groundworks on Modular Clubhouse, moss side playing fields, Leyland 2.5% Retention due",17/02/2017,0000430012,"2,278.31",Revenue,INTEGRA BUILDINGS LTD,131225
South Ribble Council,http://statistics.data.gov.uk/doc/local-authority/30UN,HR & Communications,Payroll Suspense,1741,MEMBERSHIP SUBSCRIPTION RENEWAL FOR NAME REDACTED MEMBERSHIP NUMBER - 046518 1ST APRIL 2017 ,22/02/2017,0000430043,140.00,Revenue,IOSH,00108850
South Ribble Council,http://statistics.data.gov.uk/doc/local-authority/30UN,HR & Communications,Payroll Suspense,1741,MEMBERSHIP SUBSCRIPTION RENEWAL FOR NAME REDACTED MEMBERSHIP NUMBER - 051672 1ST APRIL 2017 ,22/02/2017,0000430043,140.00,Revenue,IOSH,00108850
South Ribble Council,http://statistics.data.gov.uk/doc/local-authority/30UN,Area 3 - Parks/Leyland East West,Grounds Maint Cntrctrs Chgs,4657,6no Quercus Robur RB 16-18com as per email.,17/02/2017,0000430027,450.00,Revenue,J A JONES & SONS,00025548
South Ribble Council,http://statistics.data.gov.uk/doc/local-authority/30UN,Area 3 - Parks/Leyland East West,Grounds Maint Cntrctrs Chgs,4657,Delivery to PR26 7QR at beginning of February,17/02/2017,0000430027,60.00,Revenue,J A JONES & SONS,00025548
South Ribble Council,http://statistics.data.gov.uk/doc/local-authority/30UN,Healthy Communities,Other Misc,4851,Tennis Coaching in various primary schools;,08/02/2017,0000429625,662.50,Revenue,Jacqueline Lowe,132083
South Ribble Council,http://statistics.data.gov.uk/doc/local-authority/30UN,Property Services,Rep & Maint Premises,2020,Annual Contract for 2016-2017 for  schedule ref SMD106996  dated 3.3.16  Worden Arts Centre,10/02/2017,0000429838,145.00,Revenue,JAMES MERCER GROUP LTD,00028587
South Ribble Council,http://statistics.data.gov.uk/doc/local-authority/30UN,Property Services,Rep & Maint Premises,2020,Annual Contract for 2016- 2017 schedule ref SMD106996 dated 3.3.2016 The Bungalow,10/02/2017,0000429838,145.00,Revenue,JAMES MERCER GROUP LTD,00028587
South Ribble Council,http://statistics.data.gov.uk/doc/local-authority/30UN,Property Services,Rep & Maint Premises,2020,Annual Contract for 2016- 2017 schedule ref SMD106996 dated 3.3.2016 3 Farmyard Cottages,10/02/2017,0000429838,145.00,Revenue,JAMES MERCER GROUP LTD,00028587
South Ribble Council,http://statistics.data.gov.uk/doc/local-authority/30UN,Property Services,Rep & Maint Premises,2020,Annual Contract for 2016- 2017 schedule ref SMD106996 dated 3.3.2016 4 Farmyard Cottages,10/02/2017,0000429838,145.00,Revenue,JAMES MERCER GROUP LTD,00028587
South Ribble Council,http://statistics.data.gov.uk/doc/local-authority/30UN,Property Services,Rep & Maint Premises,2020,Annual Contract for 2016- 2017 schedule ref SMD106996 dated 3.3.2016 Derby Wing,10/02/2017,0000429838,145.00,Revenue,JAMES MERCER GROUP LTD,00028587
South Ribble Council,http://statistics.data.gov.uk/doc/local-authority/30UN,Property Services,Rep & Maint Premises,2020,Annual Contract for 2016- 2017 schedule ref SMD106996 dated 3.3.2016 Conservatory,10/02/2017,0000429838,145.00,Revenue,JAMES MERCER GROUP LTD,00028587
South Ribble Council,http://statistics.data.gov.uk/doc/local-authority/30UN,Property Services,Rep & Maint Premises,2020,Annual Contract for 2016 - 2017 for the maintenance of the Trend BMS HVAC 4 x day visits (TBA) at the Civic Centre Offices,17/02/2017,0000430016,390.00,Revenue,JBC CONTROL SYSTEM,130816
South Ribble Council,http://statistics.data.gov.uk/doc/local-authority/30UN,HR & Communications,Other Misc,4851,Transcription service,08/02/2017,0000429711,530.15,Revenue,JML CONSULTANTS UK LTD T/A TYPEOUT,132148
South Ribble Council,http://statistics.data.gov.uk/doc/local-authority/30UN,Area 3 - Parks/Leyland East West,Grounds Maint Cntrctrs Chgs,4657,"Removal of Shelterbelt Vegetation, Worden Park Arboretum",24/02/2017,0000430152,"4,380.00",Revenue,JOHN COOPER RECYCLING LTD,130907
South Ribble Council,http://statistics.data.gov.uk/doc/local-authority/30UN,Planning,Advertising,4841,Press notices for planning applications,08/02/2017,0000429726,513.00,Revenue,JOHNSTON PUBLISHING (NORTH WEST),00011345
South Ribble Council,http://statistics.data.gov.uk/doc/local-authority/30UN,Planning,Advertising,4841,Press notices for planning applications,22/02/2017,0000429904,648.00,Revenue,JOHNSTON PUBLISHING (NORTH WEST),00011345
South Ribble Council,http://statistics.data.gov.uk/doc/local-authority/30UN,Planning,Advertising,4841,Press notices for planning applications,22/02/2017,0000429955,864.00,Revenue,JOHNSTON PUBLISHING (NORTH WEST),00011345
South Ribble Council,http://statistics.data.gov.uk/doc/local-authority/30UN,Planning,Advertising,4841,Press notices for planning applications,22/02/2017,0000429956,621.00,Revenue,JOHNSTON PUBLISHING (NORTH WEST),00011345
South Ribble Council,http://statistics.data.gov.uk/doc/local-authority/30UN,Area 2 - Waste Transport/Eastern & Central Teams,Materials General,4040,"1 MOTOR, 1 DRIVE PLATE, 1 BOLT, 1 DRIVE KEY - RV14DTZ - JFC8200 - AW",15/02/2017,0000429869,476.68,Revenue,JOHNSTON SWEEPERS LTD,00058926
South Ribble Council,http://statistics.data.gov.uk/doc/local-authority/30UN,Planning,Professional Fees,4510,"The South Ribble Local Plan - Land off Langdale Road, Leyland 02/02/2017 - Advice - 4.5hrs",10/02/2017,0000429864,450.00,Revenue,Killian Garvey,132097
South Ribble Council,http://statistics.data.gov.uk/doc/local-authority/30UN,Property Services,Rep & Maint Premises,2020,2016 / 2017 contract for water hygiene monitoring at Gregson Lane Pavilion,01/02/2017,0000429598,46.00,Revenue,KNOWSLEY BLD & ENVIRONMENTAL SERVICES LT,00072656
South Ribble Council,http://statistics.data.gov.uk/doc/local-authority/30UN,Property Services,Rep & Maint Premises,2020,2016 / 2017 contract for water hygiene monitoring at Hern Avenue Pavilion,01/02/2017,0000429598,46.00,Revenue,KNOWSLEY BLD & ENVIRONMENTAL SERVICES LT,00072656
South Ribble Council,http://statistics.data.gov.uk/doc/local-authority/30UN,Property Services,Rep & Maint Premises,2020,2016 / 2017 contract for water hygiene monitoring at Higher Walton Pavilion,01/02/2017,0000429598,46.00,Revenue,KNOWSLEY BLD & ENVIRONMENTAL SERVICES LT,00072656
South Ribble Council,http://statistics.data.gov.uk/doc/local-authority/30UN,Property Services,Rep & Maint Premises,2020,2016 / 2017 contract for water hygiene monitoring at Holme Pavilion,01/02/2017,0000429598,46.00,Revenue,KNOWSLEY BLD & ENVIRONMENTAL SERVICES LT,00072656
South Ribble Council,http://statistics.data.gov.uk/doc/local-authority/30UN,Property Services,Rep & Maint Premises,2020,2016 / 2017 contract for water hygiene monitoring at Hutton Pavilion,01/02/2017,0000429598,46.00,Revenue,KNOWSLEY BLD & ENVIRONMENTAL SERVICES LT,00072656
South Ribble Council,http://statistics.data.gov.uk/doc/local-authority/30UN,Property Services,Rep & Maint Premises,2020,2016 / 2017 contract for water hygiene monitoring at Kingsfold pavilion,01/02/2017,0000429598,53.50,Revenue,KNOWSLEY BLD & ENVIRONMENTAL SERVICES LT,00072656
South Ribble Council,http://statistics.data.gov.uk/doc/local-authority/30UN,Property Services,Rep & Maint Premises,2020,2016 / 2017 contract for water hygiene monitoring at sports pavilions Worden Park (formerly long pavilion),01/02/2017,0000429598,46.00,Revenue,KNOWSLEY BLD & ENVIRONMENTAL SERVICES LT,00072656
South Ribble Council,http://statistics.data.gov.uk/doc/local-authority/30UN,Property Services,Rep & Maint Premises,2020,2016 / 2017 contract for water hygiene monitoring at Moss Side Pavilion,01/02/2017,0000429598,53.50,Revenue,KNOWSLEY BLD & ENVIRONMENTAL SERVICES LT,00072656
South Ribble Council,http://statistics.data.gov.uk/doc/local-authority/30UN,Property Services,Rep & Maint Premises,2020,2016 / 2017 contract for water hygiene monitoring at Much Hoole Pavilion,01/02/2017,0000429598,46.00,Revenue,KNOWSLEY BLD & ENVIRONMENTAL SERVICES LT,00072656
South Ribble Council,http://statistics.data.gov.uk/doc/local-authority/30UN,Property Services,Rep & Maint Premises,2020,2016 / 2017 contract for water hygiene monitoring at Penwortham Holme,01/02/2017,0000429598,46.00,Revenue,KNOWSLEY BLD & ENVIRONMENTAL SERVICES LT,00072656
South Ribble Council,http://statistics.data.gov.uk/doc/local-authority/30UN,Property Services,Rep & Maint Premises,2020,2016 / 2017 contract for water hygiene monitoring at St Cuthbert`s Pavilion,01/02/2017,0000429598,46.00,Revenue,KNOWSLEY BLD & ENVIRONMENTAL SERVICES LT,00072656
South Ribble Council,http://statistics.data.gov.uk/doc/local-authority/30UN,Property Services,Rep & Maint Premises,2020,2016 / 2017 contract for water hygiene monitoring at Withy Grove Pavilion,01/02/2017,0000429598,53.50,Revenue,KNOWSLEY BLD & ENVIRONMENTAL SERVICES LT,00072656
South Ribble Council,http://statistics.data.gov.uk/doc/local-authority/30UN,Property Services,Rep & Maint Premises,2020,2016 / 2017 contract for water hygiene monitoring at Holland House Farm Pavilion,01/02/2017,0000429598,46.00,Revenue,KNOWSLEY BLD & ENVIRONMENTAL SERVICES LT,00072656
South Ribble Council,http://statistics.data.gov.uk/doc/local-authority/30UN,Property Services,Rep & Maint Premises,2020,"2016 / 2017 contract for water hygiene monitoring at The Derby Wing, Worden Park",01/02/2017,0000429598,43.50,Revenue,KNOWSLEY BLD & ENVIRONMENTAL SERVICES LT,00072656
South Ribble Council,http://statistics.data.gov.uk/doc/local-authority/30UN,Property Services,Rep & Maint Premises,2020,2016 / 2017 contract for water hygiene monitoring at Carr Street Community Centre,01/02/2017,0000429598,43.50,Revenue,KNOWSLEY BLD & ENVIRONMENTAL SERVICES LT,00072656
South Ribble Council,http://statistics.data.gov.uk/doc/local-authority/30UN,Property Services,Rep & Maint Premises,2020,2016 / 2017 contract for water hygiene monitoring at Kingsfold Community Centre,01/02/2017,0000429598,43.50,Revenue,KNOWSLEY BLD & ENVIRONMENTAL SERVICES LT,00072656
South Ribble Council,http://statistics.data.gov.uk/doc/local-authority/30UN,Property Services,Rep & Maint Premises,2020,2016 / 2017 contract for water hygiene monitoring at Higher Walton Community Centre,01/02/2017,0000429598,43.50,Revenue,KNOWSLEY BLD & ENVIRONMENTAL SERVICES LT,00072656
South Ribble Council,http://statistics.data.gov.uk/doc/local-authority/30UN,Property Services,Rep & Maint Premises,2020,2016 / 2017 contract for water hygiene monitoring at Moss Side Community Centre,01/02/2017,0000429598,43.50,Revenue,KNOWSLEY BLD & ENVIRONMENTAL SERVICES LT,00072656
South Ribble Council,http://statistics.data.gov.uk/doc/local-authority/30UN,Property Services,Rep & Maint Premises,2020,2016 / 2017 contract for water hygiene monitoring at Worden Arts & Craft Centre,01/02/2017,0000429598,58.50,Revenue,KNOWSLEY BLD & ENVIRONMENTAL SERVICES LT,00072656
South Ribble Council,http://statistics.data.gov.uk/doc/local-authority/30UN,Property Services,Rep & Maint Premises,2020,2016 /2017 contract for water hygiene monitoring at Leyland Market,01/02/2017,0000429598,36.00,Revenue,KNOWSLEY BLD & ENVIRONMENTAL SERVICES LT,00072656
South Ribble Council,http://statistics.data.gov.uk/doc/local-authority/30UN,Property Services,Rep & Maint Premises,2020,2016 / 2017  contract for water hygiene monitoring at Hurst Grange Park,01/02/2017,0000429598,43.50,Revenue,KNOWSLEY BLD & ENVIRONMENTAL SERVICES LT,00072656
South Ribble Council,http://statistics.data.gov.uk/doc/local-authority/30UN,Property Services,Rep & Maint Premises,2020,"2016 / 2017 contract for water hygiene monitoring at Crossroads toilets, Worden Park",01/02/2017,0000429598,23.00,Revenue,KNOWSLEY BLD & ENVIRONMENTAL SERVICES LT,00072656
South Ribble Council,http://statistics.data.gov.uk/doc/local-authority/30UN,Property Services,Rep & Maint Premises,2020,2016 / 2017 contract for water hygiene monitoring at Hope Terrace Public toilets,01/02/2017,0000429598,23.00,Revenue,KNOWSLEY BLD & ENVIRONMENTAL SERVICES LT,00072656
South Ribble Council,http://statistics.data.gov.uk/doc/local-authority/30UN,Property Services,Rep & Maint Premises,2020,2016 / 2017 contract for water hygiene monitoring at Longton Brick Croft,01/02/2017,0000429598,26.00,Revenue,KNOWSLEY BLD & ENVIRONMENTAL SERVICES LT,00072656
South Ribble Council,http://statistics.data.gov.uk/doc/local-authority/30UN,Property Services,Rep & Maint Premises,2020,"2016 / 2017 contract for water hygiene monitoring at Playground toilets, Worden Park",01/02/2017,0000429598,23.00,Revenue,KNOWSLEY BLD & ENVIRONMENTAL SERVICES LT,00072656
South Ribble Council,http://statistics.data.gov.uk/doc/local-authority/30UN,Property Services,Rep & Maint Premises,2020,2016 / 2017 contract for water hygiene monitoring at SR Museum & Exhibition Centre,01/02/2017,0000429598,26.00,Revenue,KNOWSLEY BLD & ENVIRONMENTAL SERVICES LT,00072656
South Ribble Council,http://statistics.data.gov.uk/doc/local-authority/30UN,Property Services,Rep & Maint Premises,2020,2016 / 2017 contract for water hygiene monitoring at Withy Grove public toilets,01/02/2017,0000429598,23.00,Revenue,KNOWSLEY BLD & ENVIRONMENTAL SERVICES LT,00072656
South Ribble Council,http://statistics.data.gov.uk/doc/local-authority/30UN,Property Services,Rep & Maint Premises,2020,"2016 / 2017 contract for water hygiene monitoring at the Civic Centre, Leyland",01/02/2017,0000429598,184.50,Revenue,KNOWSLEY BLD & ENVIRONMENTAL SERVICES LT,00072656
South Ribble Council,http://statistics.data.gov.uk/doc/local-authority/30UN,Property Services,Rep & Maint Premises,2020,2016 / 2017 contract for water hygiene monitoring at Moss Side Depot,01/02/2017,0000429598,112.50,Revenue,KNOWSLEY BLD & ENVIRONMENTAL SERVICES LT,00072656
South Ribble Council,http://statistics.data.gov.uk/doc/local-authority/30UN,Property Services,Rep & Maint Premises,2020,2016 / 2017 contract for water hygiene monitoring at Longton Pavilion,01/02/2017,0000429598,46.00,Revenue,KNOWSLEY BLD & ENVIRONMENTAL SERVICES LT,00072656
South Ribble Council,http://statistics.data.gov.uk/doc/local-authority/30UN,Planning,Professional Fees,4510,"Service level Agreement 2016-2017, 1,250 p/a",01/02/2017,0000429611,312.50,Revenue,Lancashire Archaeological Advisory Service,132007
South Ribble Council,http://statistics.data.gov.uk/doc/local-authority/30UN,Planning,Professional Fees,4510,"Service level Agreement 2016-2017, 1,250 p/a",01/02/2017,0000429612,312.50,Revenue,Lancashire Archaeological Advisory Service,132007
South Ribble Council,http://statistics.data.gov.uk/doc/local-authority/30UN,Planning,Professional Fees,4510,"Service level Agreement 2016-2017, 1,250 p/a",15/02/2017,0000429906,312.50,Revenue,Lancashire Archaeological Advisory Service,132007
South Ribble Council,http://statistics.data.gov.uk/doc/local-authority/30UN,Area 2 - Waste Transport/Eastern & Central Teams,Waste Disposal Charges,5112,December 2016 - Incineration of Clinical Waste.,08/02/2017,0000429618,560.12,Revenue,LANCASHIRE TEACHING FT,00120715
South Ribble Council,http://statistics.data.gov.uk/doc/local-authority/30UN,Area 2 - Waste Transport/Eastern & Central Teams,Waste Disposal Charges,5112,November 2016 - Incineration of Clinical Waste,08/02/2017,0000429630,731.50,Revenue,LANCASHIRE TEACHING FT,00120715
South Ribble Council,http://statistics.data.gov.uk/doc/local-authority/30UN,Environmental Health,Subs to Statutory Bodies,4720,ANNUAL SUBS TO EHL FOR 2016/17 PER NAME REDACTED,15/02/2017,0000429840,250.00,Revenue,LANCASTER CITY COUNCIL,131113
South Ribble Council,http://statistics.data.gov.uk/doc/local-authority/30UN,HR & Communications,Other Local Authorities,4531,PAYROLL SERVICES JANUARY - MARCH 2017,15/02/2017,0000429573,"5,623.75",Revenue,LANCS COUNTY COUNCIL,00041645
South Ribble Council,http://statistics.data.gov.uk/doc/local-authority/30UN,Information Services,Peripherals,4246,Annual charge for LCC/SRBC link & support 01/04/16 - 31/03/17,01/02/2017,0000429597,"4,463.00",Revenue,LANCS COUNTY COUNCIL,00041645
South Ribble Council,http://statistics.data.gov.uk/doc/local-authority/30UN,Housing,Cap Grant- Improve Grants,C570,"CLOSOMAT AT ADDRESS REDACTED AS PER QUOTE 3,636.50",17/02/2017,0000430042,"3,636.50",Revenue,LANCS COUNTY COUNCIL,00041645
South Ribble Council,http://statistics.data.gov.uk/doc/local-authority/30UN,Planning,Printing,4125,Lease Rental - Hewlett Packard Plotters,15/02/2017,0000429857,"1,426.25",Revenue,LDF FINANCE No1 LTD,131373
South Ribble Council,http://statistics.data.gov.uk/doc/local-authority/30UN,Area 3 - Parks/Leyland East West,Grounds Maint Cntrctrs Chgs,4657,Hardwood Chip to Dob lane Playground - 106m3,15/02/2017,0000429871,"1,170.00",Revenue,M & B Surfaces,132021
South Ribble Council,http://statistics.data.gov.uk/doc/local-authority/30UN,Area 3 - Parks/Leyland East West,Grounds Maint Cntrctrs Chgs,4657,Hardwood Chip to Farington Park Playground - 240m3,15/02/2017,0000429891,"1,170.00",Revenue,M & B Surfaces,132021
South Ribble Council,http://statistics.data.gov.uk/doc/local-authority/30UN,Area 3 - Parks/Leyland East West,Grounds Maint Cntrctrs Chgs,4657,Hardwood Chip to Dob lane Playground - 106m3,15/02/2017,0000429893,760.50,Revenue,M & B Surfaces,132021
South Ribble Council,http://statistics.data.gov.uk/doc/local-authority/30UN,Area 3 - Parks/Leyland East West,Grounds Maint Cntrctrs Chgs,4657,Hardwood Chip to Dob lane Playground - 106m3,15/02/2017,0000429917,"1,023.75",Revenue,M & B Surfaces,132021
South Ribble Council,http://statistics.data.gov.uk/doc/local-authority/30UN,Area 3 - Parks/Leyland East West,Grounds Maint Cntrctrs Chgs,4657,Hardwood Chip to Farington Park Playground - 240m3,15/02/2017,0000429918,"1,170.00",Revenue,M & B Surfaces,132021
South Ribble Council,http://statistics.data.gov.uk/doc/local-authority/30UN,Area 3 - Parks/Leyland East West,Grounds Maint Cntrctrs Chgs,4657,Hardwood Chip to Farington Park Playground - 240m3,15/02/2017,0000429919,"1,170.00",Revenue,M & B Surfaces,132021
South Ribble Council,http://statistics.data.gov.uk/doc/local-authority/30UN,Area 3 - Parks/Leyland East West,Grounds Maint Cntrctrs Chgs,4657,Hardwood Chip to Farington Park Playground - 240m3,15/02/2017,0000429920,"1,170.00",Revenue,M & B Surfaces,132021
South Ribble Council,http://statistics.data.gov.uk/doc/local-authority/30UN,Area 3 - Parks/Leyland East West,Grounds Maint Cntrctrs Chgs,4657,Hardwood Chip to Farington Park Playground - 240m3,15/02/2017,0000429921,"1,170.00",Revenue,M & B Surfaces,132021
South Ribble Council,http://statistics.data.gov.uk/doc/local-authority/30UN,Area 3 - Parks/Leyland East West,Grounds Maint Cntrctrs Chgs,4657,Hardwood Chip to Farington Park Playground - 240m3,15/02/2017,0000429922,"1,170.00",Revenue,M & B Surfaces,132021
South Ribble Council,http://statistics.data.gov.uk/doc/local-authority/30UN,Neighbourhood Admin & Support,Operational Furniture & Equip,4010,PADLOCKS � SQUIRE 660 T PASS KEY 9,01/02/2017,0000429507,182.63,Revenue,M A C BUILDING PRODUCTS LTD,00051059
South Ribble Council,http://statistics.data.gov.uk/doc/local-authority/30UN,Neighbourhood Admin & Support,Operational Furniture & Equip,4010,PADLOCKS  - SQUIRE 660 TO PASS KEY 10,01/02/2017,0000429507,121.75,Revenue,M A C BUILDING PRODUCTS LTD,00051059
South Ribble Council,http://statistics.data.gov.uk/doc/local-authority/30UN,Housing,Cap Grant- Improve Grants,C570,DFG works to property as per quote at ADDRESS REDACTED,17/02/2017,0000429953,"3,317.18",Revenue,M J PARK,00087434
South Ribble Council,http://statistics.data.gov.uk/doc/local-authority/30UN,Area 2 - Waste Transport/Eastern & Central Teams,External Contractors Charges,4570,SPEC REPAIR - JFC8080 - PJ62UCH - PD,01/02/2017,0000429536,940.67,Revenue,M WILSON COMMERCIALS LIMITED,130533
South Ribble Council,http://statistics.data.gov.uk/doc/local-authority/30UN,Area 2 - Waste Transport/Eastern & Central Teams,External Contractors Charges,4570,"1 spec repair, PJ62 UCG, JFC8226. (NAME REDACTED)",15/02/2017,0000429839,476.35,Revenue,M WILSON COMMERCIALS LIMITED,130533
South Ribble Council,http://statistics.data.gov.uk/doc/local-authority/30UN,Area 2 - Waste Transport/Eastern & Central Teams,External Contractors Charges,4570,SPEC REPAIR - JFC8287 - NX58FJZ - PD,24/02/2017,0000430178,650.70,Revenue,M WILSON COMMERCIALS LIMITED,130533
South Ribble Council,http://statistics.data.gov.uk/doc/local-authority/30UN,Housing,Cap Grant- Improve Grants,C570,DFG works to bathroom at ADDRESS REDACTED - 50% of total cost,22/02/2017,0000430123,"1,217.50",Revenue,MAHONEY CONTRACTORS LTD,131271
South Ribble Council,http://statistics.data.gov.uk/doc/local-authority/30UN,Housing,Cap Grant- Improve Grants,C570,DFG Works to bathroom at ADDRESS REDACTED - 50% of total cost excluding customer contribution of 427.25,22/02/2017,0000430124,772.75,Revenue,MAHONEY CONTRACTORS LTD,131271
South Ribble Council,http://statistics.data.gov.uk/doc/local-authority/30UN,Housing,Cap Grant- Improve Grants,C570,DFG Works to bathroom at ADDRESS REDACTED - 50% of total cost,22/02/2017,0000430125,"1,225.00",Revenue,MAHONEY CONTRACTORS LTD,131271
South Ribble Council,http://statistics.data.gov.uk/doc/local-authority/30UN,Neighbourhood Admin & Support,Materials General,4040,ADDRESS REDACTED,24/02/2017,0000430191,129.00,Revenue,Main Street Signs Ltd,131922
South Ribble Council,http://statistics.data.gov.uk/doc/local-authority/30UN,Neighbourhood Admin & Support,Materials General,4040,ADDRESS REDACTED,24/02/2017,0000430191,43.00,Revenue,Main Street Signs Ltd,131922
South Ribble Council,http://statistics.data.gov.uk/doc/local-authority/30UN,Neighbourhood Admin & Support,Materials General,4040,ADDRESS REDACTED,24/02/2017,0000430191,54.00,Revenue,Main Street Signs Ltd,131922
South Ribble Council,http://statistics.data.gov.uk/doc/local-authority/30UN,Neighbourhood Admin & Support,Materials General,4040,ADDRESS REDACTED,24/02/2017,0000430191,84.00,Revenue,Main Street Signs Ltd,131922
South Ribble Council,http://statistics.data.gov.uk/doc/local-authority/30UN,Neighbourhood Admin & Support,Materials General,4040,ADDRESS REDACTED,24/02/2017,0000430191,44.00,Revenue,Main Street Signs Ltd,131922
South Ribble Council,http://statistics.data.gov.uk/doc/local-authority/30UN,Neighbourhood Admin & Support,Materials General,4040,ADDRESS REDACTED,24/02/2017,0000430191,92.00,Revenue,Main Street Signs Ltd,131922
South Ribble Council,http://statistics.data.gov.uk/doc/local-authority/30UN,Neighbourhood Admin & Support,Materials General,4040,ADDRESS REDACTED,24/02/2017,0000430191,46.00,Revenue,Main Street Signs Ltd,131922
South Ribble Council,http://statistics.data.gov.uk/doc/local-authority/30UN,Neighbourhood Admin & Support,Materials General,4040,ADDRESS REDACTED,24/02/2017,0000430191,57.00,Revenue,Main Street Signs Ltd,131922
South Ribble Council,http://statistics.data.gov.uk/doc/local-authority/30UN,Neighbourhood Admin & Support,Materials General,4040,ADDRESS REDACTED,24/02/2017,0000430191,13.00,Revenue,Main Street Signs Ltd,131922
South Ribble Council,http://statistics.data.gov.uk/doc/local-authority/30UN,Neighbourhood Admin & Support,Materials General,4040,ADDRESS REDACTED,24/02/2017,0000430191,42.00,Revenue,Main Street Signs Ltd,131922
South Ribble Council,http://statistics.data.gov.uk/doc/local-authority/30UN,Neighbourhood Admin & Support,Materials General,4040,CARRIAGE,24/02/2017,0000430191,42.00,Revenue,Main Street Signs Ltd,131922
South Ribble Council,http://statistics.data.gov.uk/doc/local-authority/30UN,Area 3 - Parks/Leyland East West,Grounds Maint Cntrctrs Chgs,4657,16no RECLAIMED SLEEPERS @20 EACH,15/02/2017,0000429787,320.00,Revenue,MARTIN EDWARDS,00054768
South Ribble Council,http://statistics.data.gov.uk/doc/local-authority/30UN,Area 3 - Parks/Leyland East West,Grounds Maint Cntrctrs Chgs,4657,3no 6` I BEAMS @ 40 EACH,15/02/2017,0000429787,120.00,Revenue,MARTIN EDWARDS,00054768
South Ribble Council,http://statistics.data.gov.uk/doc/local-authority/30UN,Property Services,Provisions,4311,Bar order for Mayors Banquet on 2nd December 2016,08/02/2017,0000429724,268.25,Revenue,MATTHEW CLARK WHOLESALE LTD,00047720
South Ribble Council,http://statistics.data.gov.uk/doc/local-authority/30UN,Area 2 - Waste Transport/Eastern & Central Teams,External Contractors Charges,4570,1 VEHICLE RECOVERY VO65 KRE JFC8161,08/02/2017,0000429753,281.75,Revenue,MILLERS OF LONGTON LTD,00028642
South Ribble Council,http://statistics.data.gov.uk/doc/local-authority/30UN,Housing,Cap Grant- Improve Grants,C570,DFG Works,17/02/2017,0000430041,"3,438.15",Revenue,Mint Construction Ltd,131987
South Ribble Council,http://statistics.data.gov.uk/doc/local-authority/30UN,Area 1 - Penwortham Western Parishes,Professional Fees,4521,PROVISION OF STRAY DOG SERVICE - TO COVER JANUARY 2017,17/02/2017,0000429797,359.82,Revenue,MORNINGSIDE KENNELS,00067755
South Ribble Council,http://statistics.data.gov.uk/doc/local-authority/30UN,Housing,Cap Grant- Improve Grants,C570,DFG WORKS AT ADDRESS REDACTED,22/02/2017,0000430083,"1,965.00",Revenue,NAME REDACTED,131996
South Ribble Council,http://statistics.data.gov.uk/doc/local-authority/30UN,Area 2 - Waste Transport/Eastern & Central Teams,External Contractors Charges,4570,STEAM CLEAN - JFC7930 - YP11CFM - PD,08/02/2017,0000429667,65.00,Revenue,NAYLORS TRANSPORT (LEYLAND) ltd,00114828
South Ribble Council,http://statistics.data.gov.uk/doc/local-authority/30UN,Area 2 - Waste Transport/Eastern & Central Teams,External Contractors Charges,4570,STEAM CLEAN - JFC7931 - VO65KRD - PD,08/02/2017,0000429667,65.00,Revenue,NAYLORS TRANSPORT (LEYLAND) ltd,00114828
South Ribble Council,http://statistics.data.gov.uk/doc/local-authority/30UN,Area 2 - Waste Transport/Eastern & Central Teams,External Contractors Charges,4570,STEAM CLEAN - JFC7932 - MX04YNL - PD,08/02/2017,0000429667,65.00,Revenue,NAYLORS TRANSPORT (LEYLAND) ltd,00114828
South Ribble Council,http://statistics.data.gov.uk/doc/local-authority/30UN,Area 2 - Waste Transport/Eastern & Central Teams,External Contractors Charges,4570,STEAM CLEAN - JFC7933 - RV14DTZ - PD,08/02/2017,0000429667,65.00,Revenue,NAYLORS TRANSPORT (LEYLAND) ltd,00114828
South Ribble Council,http://statistics.data.gov.uk/doc/local-authority/30UN,Area 2 - Waste Transport/Eastern & Central Teams,External Contractors Charges,4570,STEAM CLEAN - JFC7934 - VO65KRF - PD,08/02/2017,0000429667,65.00,Revenue,NAYLORS TRANSPORT (LEYLAND) ltd,00114828
South Ribble Council,http://statistics.data.gov.uk/doc/local-authority/30UN,Area 2 - Waste Transport/Eastern & Central Teams,External Contractors Charges,4570,STEAM CLEAN - JFC7935 - VO65KPX - PD,08/02/2017,0000429667,65.00,Revenue,NAYLORS TRANSPORT (LEYLAND) ltd,00114828
South Ribble Council,http://statistics.data.gov.uk/doc/local-authority/30UN,Area 2 - Waste Transport/Eastern & Central Teams,External Contractors Charges,4570,STEAM CLEAN - JFC7936 - PJ62UCH - PD,08/02/2017,0000429667,65.00,Revenue,NAYLORS TRANSPORT (LEYLAND) ltd,00114828
South Ribble Council,http://statistics.data.gov.uk/doc/local-authority/30UN,Area 2 - Waste Transport/Eastern & Central Teams,External Contractors Charges,4570,STEAM CLEAN - JFC7937 - VO65KPY - PD,08/02/2017,0000429667,65.00,Revenue,NAYLORS TRANSPORT (LEYLAND) ltd,00114828
South Ribble Council,http://statistics.data.gov.uk/doc/local-authority/30UN,Area 2 - Waste Transport/Eastern & Central Teams,External Contractors Charges,4570,STEAM CLEAN - JFC7938 - VK09AHJ - PD,08/02/2017,0000429667,65.00,Revenue,NAYLORS TRANSPORT (LEYLAND) ltd,00114828
South Ribble Council,http://statistics.data.gov.uk/doc/local-authority/30UN,Area 2 - Waste Transport/Eastern & Central Teams,External Contractors Charges,4570,STEAM CLEAN - JFC7939 - VN10DKL - PD,08/02/2017,0000429667,65.00,Revenue,NAYLORS TRANSPORT (LEYLAND) ltd,00114828
South Ribble Council,http://statistics.data.gov.uk/doc/local-authority/30UN,Area 2 - Waste Transport/Eastern & Central Teams,External Contractors Charges,4570,STEAM CLEAN - JFC7940 - PJ62UCM - PD,08/02/2017,0000429667,75.00,Revenue,NAYLORS TRANSPORT (LEYLAND) ltd,00114828
South Ribble Council,http://statistics.data.gov.uk/doc/local-authority/30UN,Area 2 - Waste Transport/Eastern & Central Teams,External Contractors Charges,4570,STEAM CLEAN - JFC7941 - VO65KPZ - PD,08/02/2017,0000429667,65.00,Revenue,NAYLORS TRANSPORT (LEYLAND) ltd,00114828
South Ribble Council,http://statistics.data.gov.uk/doc/local-authority/30UN,Area 2 - Waste Transport/Eastern & Central Teams,External Contractors Charges,4570,STEAM CLEAN - JFC7942 - PJ62UCL - PD,08/02/2017,0000429667,65.00,Revenue,NAYLORS TRANSPORT (LEYLAND) ltd,00114828
South Ribble Council,http://statistics.data.gov.uk/doc/local-authority/30UN,Area 2 - Waste Transport/Eastern & Central Teams,External Contractors Charges,4570,STEAM CLEAN - JFC7943 - PJ62UCG - PD,08/02/2017,0000429667,65.00,Revenue,NAYLORS TRANSPORT (LEYLAND) ltd,00114828
South Ribble Council,http://statistics.data.gov.uk/doc/local-authority/30UN,Area 2 - Waste Transport/Eastern & Central Teams,External Contractors Charges,4570,STEAM CLEAN - JFC7944 - NX58FJZ - PD,08/02/2017,0000429667,65.00,Revenue,NAYLORS TRANSPORT (LEYLAND) ltd,00114828
South Ribble Council,http://statistics.data.gov.uk/doc/local-authority/30UN,Information Services,Processing-Internal,4212,iStorm and xStorm renewal for 12 months,01/02/2017,0000429571,"7,950.00",Revenue,NCC Group Security Services Ltd,132130
South Ribble Council,http://statistics.data.gov.uk/doc/local-authority/30UN,Property Services,Client Internal Charges,4590,"2016 / 2017 - Weekly waste removal at Leyland Market, @ 79.49 plus ad hoc pick ups as required.",10/02/2017,0000429825,321.12,Revenue,NEALES WASTE MANAGEMENT,130129
South Ribble Council,http://statistics.data.gov.uk/doc/local-authority/30UN,Democratic Services,Other Misc,4851,Additional void works:  Decoration of ADDRESS REDACTED,01/02/2017,0000429386,450.00,Revenue,NEW PROGRESS HOUSING ASSOC ref:DNSOU001,00030135
South Ribble Council,http://statistics.data.gov.uk/doc/local-authority/30UN,Democratic Services,Other Misc,4851,"Flooring from Hyde flooring 47 ADDRESS REDACTED - 225.50 ADDRESS REDACTED - 2040.00 ADDRESS REDACTED ",01/02/2017,0000429386,"4,300.50",Revenue,NEW PROGRESS HOUSING ASSOC ref:DNSOU001,00030135
South Ribble Council,http://statistics.data.gov.uk/doc/local-authority/30UN,Democratic Services,Other Misc,4851,"White Goods - North West Domestics: ADDRESS REDACTED:  Vacuum 42.00TOTAL COST 42.00 ADDRESS REDACTED",01/02/2017,0000429386,"2,349.00",Revenue,NEW PROGRESS HOUSING ASSOC ref:DNSOU001,00030135
South Ribble Council,http://statistics.data.gov.uk/doc/local-authority/30UN,Democratic Services,Other Misc,4851,Recharge - Additional works after sign up ADDRESS REDACTED: Electrics - 572.65 Plumbing - 253.50 Tiling - 261.92,01/02/2017,0000429386,"1,088.07",Revenue,NEW PROGRESS HOUSING ASSOC ref:DNSOU001,00030135
South Ribble Council,http://statistics.data.gov.uk/doc/local-authority/30UN,Democratic Services,Other Misc,4851,Recharge - Gas/Elec top up ADDRESS REDACTED - 80.80 ADDRESS REDACTED - 80.00,01/02/2017,0000429386,160.80,Revenue,NEW PROGRESS HOUSING ASSOC ref:DNSOU001,00030135
South Ribble Council,http://statistics.data.gov.uk/doc/local-authority/30UN,Area 1 - Penwortham Western Parishes,Professional Fees,4514,DEPLOYMENT OF OFFICERS JANUARY 2017,08/02/2017,0000429696,"1,074.41",Revenue,NSL LTD,00116868
South Ribble Council,http://statistics.data.gov.uk/doc/local-authority/30UN,Area 1 - Penwortham Western Parishes,Other Misc,4855,CASH COLLECTIONS AND RINGO TRANSACTIONS JANUARY 2017,08/02/2017,0000429696,360.44,Revenue,NSL LTD,00116868
South Ribble Council,http://statistics.data.gov.uk/doc/local-authority/30UN,Information Services,Peripherals,4247,"1yr  Crisis Helpline for AD, Microsoft Exchange and Stonegate Firewall for period 12/02/17 - 11/02/18, as per quote",03/02/2017,0000429681,"1,298.46",Revenue,NVIRON LTD,00028781
South Ribble Council,http://statistics.data.gov.uk/doc/local-authority/30UN,HR & Communications,Training Expense-Course Fees,1408,training expense course fees,10/02/2017,0000429721,"1,400.00",Revenue,OAS LTD OSTEOPOROSIS ASS SERV LTD,00119412
South Ribble Council,http://statistics.data.gov.uk/doc/local-authority/30UN,HR & Communications,Training Expense-Course Fees,1408,HEALTH SCREENINGS FOR HEALTH & WELLBEING DAY 26TH JAN 2017,03/02/2017,0000429484,"1,400.00",Revenue,OSTEOCARE (EAST MIDLANDS) LTD,130874
South Ribble Council,http://statistics.data.gov.uk/doc/local-authority/30UN,Legal,Other Misc,4851,"OYEZ FORMS CHARGES: CONVEYANCING, LANDLORD & TENANT, COMPANIES, CIVIL PROCEDURE & LICENCING",22/02/2017,0000429992,567.16,Revenue,OYEZ PROFESSIONAL SERVICES,00054823
South Ribble Council,http://statistics.data.gov.uk/doc/local-authority/30UN,Legal,Other Misc,4851,OYEZ FORMS CHARGES: CONVEYANCING AND CONVEYANCING TRANSACTION LAW SOCIETY,22/02/2017,0000429992,282.00,Revenue,OYEZ PROFESSIONAL SERVICES,00054823
South Ribble Council,http://statistics.data.gov.uk/doc/local-authority/30UN,Healthy Communities,External Contractors Charges,4575,To supply hot meals @ 6.20 per head for 55 on 18th January 2017 @ 16.30 to SRBC,17/02/2017,0000429487,341.00,Revenue,Penningtons Catering Ltd,131684
South Ribble Council,http://statistics.data.gov.uk/doc/local-authority/30UN,Healthy Communities,External Contractors Charges,4575,"Buffet for 20 people at 6.00 per head  -  27th January 2017,  Lancs CFO Meeting Assorted sandwiches plus meat choices ",17/02/2017,0000429570,120.00,Revenue,Penningtons Catering Ltd,131684
South Ribble Council,http://statistics.data.gov.uk/doc/local-authority/30UN,Healthy Communities,External Contractors Charges,4575,To supply hot meals @ 6.20 per head for  20 on 25th January 2017 @ 16.30 to SRBC,17/02/2017,0000429570,124.00,Revenue,Penningtons Catering Ltd,131684
South Ribble Council,http://statistics.data.gov.uk/doc/local-authority/30UN,Healthy Communities,Training Expense-Course Fees,1408,BUFFET  LUNCH FOR HEALTH AND WELLBEING DAY 26TH JAN 2017,17/02/2017,0000429570,180.00,Revenue,Penningtons Catering Ltd,131684
South Ribble Council,http://statistics.data.gov.uk/doc/local-authority/30UN,Healthy Communities,External Contractors Charges,4575,To supply buffet @ 6.00 per head for 15 on 31st January 2017 @ 16.30 to SRBC,17/02/2017,0000429570,90.00,Revenue,Penningtons Catering Ltd,131684
South Ribble Council,http://statistics.data.gov.uk/doc/local-authority/30UN,Healthy Communities,External Contractors Charges,4575,To supply buffet @ 6.00 per head for 15 on 30th January 2017 @ 16.30 to SRBC,17/02/2017,0000429570,90.00,Revenue,Penningtons Catering Ltd,131684
South Ribble Council,http://statistics.data.gov.uk/doc/local-authority/30UN,Environmental Health,Professional Fees,4522,gov fee,22/02/2017,0000430092,308.00,Revenue,Personnel Checks,131483
South Ribble Council,http://statistics.data.gov.uk/doc/local-authority/30UN,Environmental Health,Professional Fees,4522,admin fee,22/02/2017,0000430092,93.31,Revenue,Personnel Checks,131483
South Ribble Council,http://statistics.data.gov.uk/doc/local-authority/30UN,HR & Communications,Employee Related Insurance,1819,GROUP LIFE ASSURANCE SCHEME RENEWAL (DEPOSIT) SCHEME NUMBER - 8519 COVERING 2017/2018,17/02/2017,0000430014,"6,000.00",Revenue,PHOENIX LIFE LTD,00031532
South Ribble Council,http://statistics.data.gov.uk/doc/local-authority/30UN,Environmental Health,Other Misc,4851,"2 -5103/SS/YP082 High back Gas Lift Pump Lumbar back Operator chair Seat  Slide, No arms in Scuba YP082 with Black",17/02/2017,0000429835,279.00,Revenue,PREMIER OFFICE SUPPLES (UK) LTD,00090159
South Ribble Council,http://statistics.data.gov.uk/doc/local-authority/30UN,Information Services,Stationery,4133,"65000 sheets Evolution Everyday A4 80gm 15,000 sheets Evolution Business A4 90gm 2500 sheets Evolution Everyday A3 80gm",22/02/2017,0000430082,419.75,Revenue,PREMIER PAPER GROUP LTD,00022606
South Ribble Council,http://statistics.data.gov.uk/doc/local-authority/30UN,Democratic Services,Other Misc,4421,South Ribble NPR Corresponding Number Lists+F35,01/02/2017,0000429567,483.24,Revenue,PRINT IMAGE NETWORK LTD,00089199
South Ribble Council,http://statistics.data.gov.uk/doc/local-authority/30UN,Democratic Services,Other Misc,4423,"17,541 Neighbourhood Plan Referendum A5 Poll Cards",17/02/2017,0000429993,"1,748.00",Revenue,PRINT IMAGE NETWORK LTD,00089199
South Ribble Council,http://statistics.data.gov.uk/doc/local-authority/30UN,Democratic Services,Other Misc,4421,Neighbourhood Plan Referendum Ballot Books 136 Ordinary Books 12 Tendered Books,17/02/2017,0000429994,"1,651.00",Revenue,PRINT IMAGE NETWORK LTD,00089199
South Ribble Council,http://statistics.data.gov.uk/doc/local-authority/30UN,Democratic Services,Other Misc,4422,"4,106 Neighbourhood Plan Referendum Postal Vote Packs",17/02/2017,0000429995,"2,698.15",Revenue,PRINT IMAGE NETWORK LTD,00089199
South Ribble Council,http://statistics.data.gov.uk/doc/local-authority/30UN,Area 3 - Parks/Leyland East West,Grounds Maint Cntrctrs Chgs,4657,Spare Parts as per ref 1611.14206 for benches and calypso climber.,01/02/2017,0000428831,995.50,Revenue,PROLUDIC LTD,00083263
South Ribble Council,http://statistics.data.gov.uk/doc/local-authority/30UN,Area 3 - Parks/Leyland East West,Grounds Maint Cntrctrs Chgs,4657,Delivery,01/02/2017,0000428831,99.55,Revenue,PROLUDIC LTD,00083263
South Ribble Council,http://statistics.data.gov.uk/doc/local-authority/30UN,Area 3 - Parks/Leyland East West,Grounds Maint Cntrctrs Chgs,4657,Spares for the Flower Play Panel - U9214 as per quotation Ref - 1611.14338,01/02/2017,0000428832,973.15,Revenue,PROLUDIC LTD,00083263
South Ribble Council,http://statistics.data.gov.uk/doc/local-authority/30UN,Area 3 - Parks/Leyland East West,Grounds Maint Cntrctrs Chgs,4657,Delivery,01/02/2017,0000428832,97.32,Revenue,PROLUDIC LTD,00083263
South Ribble Council,http://statistics.data.gov.uk/doc/local-authority/30UN,Area 2 - Waste Transport/Eastern & Central Teams,Grounds Maint Cntrctrs Chgs,4657,SUPPLY SPARE PARTS AS PER QUOTATION REF. 1611.14434 AND 1612.14537,01/02/2017,0000429285,"2,327.82",Revenue,PROLUDIC LTD,00083263
South Ribble Council,http://statistics.data.gov.uk/doc/local-authority/30UN,Information Services,Postage,4292,Franking Funds Top up Payment,01/02/2017,0000429566,"9,000.00",Revenue,Purchase Power,00093923
South Ribble Council,http://statistics.data.gov.uk/doc/local-authority/30UN,Information Services,Postage,4292,Reset fee,01/02/2017,0000429566,90.00,Revenue,Purchase Power,00093923
South Ribble Council,http://statistics.data.gov.uk/doc/local-authority/30UN,Area 3 - Parks/Leyland East West,Grounds Maint Cntrctrs Chgs,4657,"Farington Park job on 31/01/17, 01/02 & 02/02/2017 �	The hire of the 2 ton dumper (60 wk), the 3 ton dumper (70 wk) the 1.5",17/02/2017,0000430034,445.00,Revenue,Readyplant Limited,131535
South Ribble Council,http://statistics.data.gov.uk/doc/local-authority/30UN,Property Services,Rep & Maint Premises,2020,supply and install a B.I.G into the land drainage to the side of the civic centre. Excavate and install concrete and back fill,15/02/2017,0000429803,261.00,Revenue,RED ROSE BUILDING MAINTENANCE,00085410
South Ribble Council,http://statistics.data.gov.uk/doc/local-authority/30UN,Area 3 - Parks/Leyland East West,Grounds Maint Cntrctrs Chgs,4657,LABOUR Works to blockage on South Pond outlet at Longton Brickcroft on 21.1.17,15/02/2017,0000429748,560.00,Revenue,Reid Construction & Civil Engineering Ltd,131544
South Ribble Council,http://statistics.data.gov.uk/doc/local-authority/30UN,Area 3 - Parks/Leyland East West,Grounds Maint Cntrctrs Chgs,4657,WORKS TO OVERPUMP AND INVESTIGATE / REPAIR BLOCKAGE IN SOUTH POND OUTLET PIPE.,08/02/2017,0000429749,560.00,Revenue,Reid Construction & Civil Engineering Ltd,131544
South Ribble Council,http://statistics.data.gov.uk/doc/local-authority/30UN,Area 3 - Parks/Leyland East West,Grounds Maint Cntrctrs Chgs,4657,MATERIALS,08/02/2017,0000429749,680.00,Revenue,Reid Construction & Civil Engineering Ltd,131544
South Ribble Council,http://statistics.data.gov.uk/doc/local-authority/30UN,Area 2 - Waste Transport/Eastern & Central Teams,External Contractors Charges,4570,Spec Repair - PE07 HXT - 8207,15/02/2017,0000429980,411.24,Revenue,RIBBLESDALE AUTO ELECTRICS 1992 LTD,00033129
South Ribble Council,http://statistics.data.gov.uk/doc/local-authority/30UN,Information Services,Lease Rental Charges,4036,lease rental charges,22/02/2017,0000430146,"1,866.00",Revenue,RICOH (UK) LTD,00082976
South Ribble Council,http://statistics.data.gov.uk/doc/local-authority/30UN,Information Services,Lease Rental Charges,4036,lease rental charges,22/02/2017,0000430147,"9,148.73",Revenue,RICOH (UK) LTD,00082976
South Ribble Council,http://statistics.data.gov.uk/doc/local-authority/30UN,Regeneration,Capital Expenditure,C234,Traffic Management Bamber Bridge,10/02/2017,0000429786,400.00,Revenue,Road Safety Services LTD,131989
South Ribble Council,http://statistics.data.gov.uk/doc/local-authority/30UN,Neighbourhood Admin & Support,Operational Furniture & Equip,4010,BAG LOOP - B05DL110,24/02/2017,0000430129,320.00,Revenue,ROBERT ACTON PRODUCTS DEVELOPMENTS,00014452
South Ribble Council,http://statistics.data.gov.uk/doc/local-authority/30UN,Democratic Services,Other Misc,4422,Other Misc,17/02/2017,0000429853,"1,603.55",Revenue,ROYAL MAIL GROUP PLC,00033543
South Ribble Council,http://statistics.data.gov.uk/doc/local-authority/30UN,Democratic Services,Other Misc,4422,Other Misc,17/02/2017,0000429853,4.11,Revenue,ROYAL MAIL GROUP PLC,00033543
South Ribble Council,http://statistics.data.gov.uk/doc/local-authority/30UN,Democratic Services,Other Misc,4422,Other Misc,17/02/2017,0000429853,4.06,Revenue,ROYAL MAIL GROUP PLC,00033543
South Ribble Council,http://statistics.data.gov.uk/doc/local-authority/30UN,Information Services,Postage,4295,Postage,24/02/2017,0000430175,278.68,Revenue,ROYAL MAIL GROUP PLC,00033543
South Ribble Council,http://statistics.data.gov.uk/doc/local-authority/30UN,Area 2 - Waste Transport/Eastern & Central Teams,External Contractors Charges,4570,SPEC REPAIR - JFC8015 - PJ04XGA - PD,15/02/2017,0000429930,800.00,Revenue,S.J. & C.W. WILKINSONS LTD,131536
South Ribble Council,http://statistics.data.gov.uk/doc/local-authority/30UN,Healthy Communities,Consultancy Fees,4536,"R & M 2016/17 payable by 12 payments of 14,931.44 + VAT",08/02/2017,0000429718,"14,931.44",Revenue,SERCO LEISURE (OP) LTD,00094906
South Ribble Council,http://statistics.data.gov.uk/doc/local-authority/30UN,Democratic Services,Other Misc,4421,85 x CCESDBAG Presiding Officer Sundry Packs - County Council Election @12.25 each = 1041.25 + VAT,24/02/2017,0000430189,"1,041.25",Revenue,SHAW & SONS LTD,00034542
South Ribble Council,http://statistics.data.gov.uk/doc/local-authority/30UN,Information Services,Professional Fees,4520,Shredding of Confidential Waste 2016/17,15/02/2017,0000429774,268.14,Revenue,SHRED-IT LTD,00109134
South Ribble Council,http://statistics.data.gov.uk/doc/local-authority/30UN,Information Services,Professional Fees,4520,Shredding of Confidential Waste 2016/17,22/02/2017,0000430068,264.12,Revenue,SHRED-IT LTD,00109134
South Ribble Council,http://statistics.data.gov.uk/doc/local-authority/30UN,Neighbourhood Admin & Support,Clothing- Uniforms & Laundry,4410,BOMBER JACKET - PORTWEST C466 SMALL - SRBC23,15/02/2017,0000429877,107.40,Revenue,SMART IMAGE WORKWEAR,00031503
South Ribble Council,http://statistics.data.gov.uk/doc/local-authority/30UN,Neighbourhood Admin & Support,Clothing- Uniforms & Laundry,4410,WATERPROOF JACKETS  - SUPERTOUCH 35B4 YELLOW - LARGE - SRBC24,15/02/2017,0000429877,127.50,Revenue,SMART IMAGE WORKWEAR,00031503
South Ribble Council,http://statistics.data.gov.uk/doc/local-authority/30UN,Neighbourhood Admin & Support,Clothing- Uniforms & Laundry,4410,WAISTCOAT � HVW03 FLUORESCENT - extra large - SRBC20,15/02/2017,0000429877,11.94,Revenue,SMART IMAGE WORKWEAR,00031503
South Ribble Council,http://statistics.data.gov.uk/doc/local-authority/30UN,Neighbourhood Admin & Support,Clothing- Uniforms & Laundry,4410,GLOVES - WINTER HV ORANGE GRAB & GRIP PORTWEST A185 SIZE 8,15/02/2017,0000429877,27.00,Revenue,SMART IMAGE WORKWEAR,00031503
South Ribble Council,http://statistics.data.gov.uk/doc/local-authority/30UN,Neighbourhood Admin & Support,Clothing- Uniforms & Laundry,4410,GLOVES - WINTER HV ORANGE GRAB & GRIP PORTWEST A185 SIZE 10 - SRBC17,15/02/2017,0000429877,27.00,Revenue,SMART IMAGE WORKWEAR,00031503
South Ribble Council,http://statistics.data.gov.uk/doc/local-authority/30UN,Customer Contact,Training Expense-Course Fees,1402,please supply 2 x places for Introduction to benefits in Manchester on 28.2.17 NAMES REDACTED Cost 170 each,15/02/2017,0000429998,340.00,Revenue,SOCIAL WELFARE TRAINING,130836
South Ribble Council,http://statistics.data.gov.uk/doc/local-authority/30UN,HR & Communications,Agency Fees,1121,PAYMENT FOR NAME REDACTED INTERIM CHEIF EXECUTIVE,08/02/2017,0000429435,"17,820.00",Revenue,SOLACE ENTERPRISES,00039990
South Ribble Council,http://statistics.data.gov.uk/doc/local-authority/30UN,HR & Communications,Agency Fees,1121,PAYMENT FOR NAME REDACTED INTERIM CHEIF EXECUTIVE,08/02/2017,0000429443,"4,860.00",Revenue,SOLACE ENTERPRISES,00039990
South Ribble Council,http://statistics.data.gov.uk/doc/local-authority/30UN,Information Services,Training Expense-Course Fees,1420,Application Development Training at SORCE in Newbury on 26th & 27th April 2017 - delegate NAME REDACTED,08/02/2017,0000429751,"1,000.00",Revenue,SORCE LTD,00080509
South Ribble Council,http://statistics.data.gov.uk/doc/local-authority/30UN,Information Services,Peripherals,4248,SORCE Support & Maintenance annual renewal for period 01/04/17 - 31/03/18,08/02/2017,0000429815,"5,971.47",Revenue,SORCE LTD,00080509
South Ribble Council,http://statistics.data.gov.uk/doc/local-authority/30UN,Area 2 - Waste Transport/Eastern & Central Teams,Materials General,4040,Playground van racking system - BJ66SMO - JFC7946 - PD,08/02/2017,0000429683,"3,581.84",Revenue,Sortimo International Limited,132126
South Ribble Council,http://statistics.data.gov.uk/doc/local-authority/30UN,Regeneration,Other Misc,4851,Other Misc,22/02/2017,0000430158,250.00,Revenue,South Ribble VCFS Network,132198
South Ribble Council,http://statistics.data.gov.uk/doc/local-authority/30UN,Environmental Health,Other Misc,4851,4 x DVRPH137 -Low Light Spy Camera with SD Motion Detection DVR Covert Security kit 12 x SD32GBSP 32GB SD Card -,01/02/2017,0000429556,753.88,Revenue,SPY CAMERA CCTV,131982
South Ribble Council,http://statistics.data.gov.uk/doc/local-authority/30UN,Development Enterprise & Comm Mgnt,Other Misc,4851,"Skills project development for Schools Workshop - Ref  Leyland Truck Trail February 2017 2,480.00 + VAT",17/02/2017,0000430013,"2,480.00",Revenue,STEMFirst Ltd,132095
South Ribble Council,http://statistics.data.gov.uk/doc/local-authority/30UN,Development Enterprise & Comm Mgnt,Other Misc,4851,"Truck Trail Marketing consultancy @ 40 per hour (8th November to 17th January) @ 3,080",17/02/2017,0000429949,"2,930.00",Revenue,STONE CREATE LTD,130896
South Ribble Council,http://statistics.data.gov.uk/doc/local-authority/30UN,Area 3 - Parks/Leyland East West,External Contractors Charges,4570,Carry out survey to drainage system between points 9 & 2 on the attached plan of Higher Walton Playing Field,08/02/2017,0000429605,650.00,Revenue,SURVEY OPERATIONS LTD,00060697
South Ribble Council,http://statistics.data.gov.uk/doc/local-authority/30UN,Property Services,Cleaning and Domestic Supplies,2711,Provision of cleaning & janitorial products for the civic centre caretakers,08/02/2017,0000429714,514.26,Revenue,SWIFT KLEEN,00119360
South Ribble Council,http://statistics.data.gov.uk/doc/local-authority/30UN,Homelessness,Contractors Charges 5,5311,Temporary accommodation ADDRESS REDACTED 21/11/16-30/11/16,01/02/2017,0000429554,300.00,Revenue,Temporary Housing Solutions Ltd,132118
South Ribble Council,http://statistics.data.gov.uk/doc/local-authority/30UN,Homelessness,Contractors Charges 5,5311,"ADDRESS REDACTED, temporary accommodation for JC 27th January-19th February  - 720",24/02/2017,0000430186,720.00,Revenue,Temporary Housing Solutions Ltd,132118
South Ribble Council,http://statistics.data.gov.uk/doc/local-authority/30UN,Area 2 - Waste Transport/Eastern & Central Teams,Materials General,4040,"6 CABLES - BIN 373, 2 PROXY SWITCHES - BIN 372, 6 SWITCHES - BIN 371  GA",08/02/2017,0000429752,974.92,Revenue,TERBERG MATEC UK LTD,00058625
South Ribble Council,http://statistics.data.gov.uk/doc/local-authority/30UN,Area 2 - Waste Transport/Eastern & Central Teams,Materials General,4040,1 X MOUNTING BRACKET - 1 X SENSOR - 1X CABLE - PJ62UCM - JFC8253,15/02/2017,0000429981,257.23,Revenue,TERBERG MATEC UK LTD,00058625
South Ribble Council,http://statistics.data.gov.uk/doc/local-authority/30UN,Regeneration,Professional Fees,4520,development of tree hives for near-native bee reintroduction via the central parks programme,24/02/2017,0000430225,"2,000.00",Revenue,The Bee centre,132104
South Ribble Council,http://statistics.data.gov.uk/doc/local-authority/30UN,HR & Communications,Payroll Suspense,1741,2017 Membership Subscriptions For NAME REDACTED (58206),08/02/2017,0000429713,364.00,Revenue,THE CHARTERED INSTITUTE OF LEGAL EXECUTIVES,131354
South Ribble Council,http://statistics.data.gov.uk/doc/local-authority/30UN,Property Services,Capital Fees,C210,Momentum Business Park Professional Services in the acquisition of 6 industrial units and preparation of snagging schedule,15/02/2017,0000429996,810.00,Revenue,The JYM Partnership LLP,132040
South Ribble Council,http://statistics.data.gov.uk/doc/local-authority/30UN,Legal,Publications,4142,Publications,01/02/2017,0000429472,599.00,Revenue,THOMSON REUTERS,00034979
South Ribble Council,http://statistics.data.gov.uk/doc/local-authority/30UN,Development Enterprise & Comm Mgnt,Other Misc,4851,Printing of scoot safe booklets and certificates,10/02/2017,0000429784,438.00,Revenue,TOWNSEND PRINT SERVICES LTD,00037170
South Ribble Council,http://statistics.data.gov.uk/doc/local-authority/30UN,Housing,Contributions,4730,Supply and Install UPVC double glazing as part of the winter warmth scheme,01/02/2017,0000429592,429.17,Revenue,TRADE WINDOWS & CONSERVATORIES,00119823
South Ribble Council,http://statistics.data.gov.uk/doc/local-authority/30UN,Housing,Contributions,4730,Supply and Install UPVC double glazing as part of the winter warmth scheme,01/02/2017,0000429613,429.17,Revenue,TRADE WINDOWS & CONSERVATORIES,00119823
South Ribble Council,http://statistics.data.gov.uk/doc/local-authority/30UN,Housing,Contributions,4730,Supply and Install UPVC double glazing as part of the winter warmth scheme,01/02/2017,0000429614,854.17,Revenue,TRADE WINDOWS & CONSERVATORIES,00119823
South Ribble Council,http://statistics.data.gov.uk/doc/local-authority/30UN,Housing,Contributions,4730,Supply and Install UPVC double glazing as part of the winter warmth scheme,01/02/2017,0000429615,937.50,Revenue,TRADE WINDOWS & CONSERVATORIES,00119823
South Ribble Council,http://statistics.data.gov.uk/doc/local-authority/30UN,Housing,Contributions,4730,Supply and Install UPVC double glazing as part of the winter warmth scheme,01/02/2017,0000429616,833.33,Revenue,TRADE WINDOWS & CONSERVATORIES,00119823
South Ribble Council,http://statistics.data.gov.uk/doc/local-authority/30UN,Neighbourhood Admin & Support,External Contractors Charges,4570,ANNUAL ODYSSEY LICENCE RENEWAL FUEL SYSTEM - MOSS SIDE DEPOT 3.3.17 - 2.3.18,22/02/2017,0000430141,"1,326.13",Revenue,TRISCAN SYSTEMS LIMITED,00108339
South Ribble Council,http://statistics.data.gov.uk/doc/local-authority/30UN,Democratic Services,Other Misc,4970,Renewal for:TFf-255 PAPER FOLDER Serial Number: 44140017 Period: 23/03/2017 to 22/03/2018 Contract Number TMA8427,22/02/2017,0000430143,778.01,Revenue,Twofold Ltd,131436
South Ribble Council,http://statistics.data.gov.uk/doc/local-authority/30UN,Property Services,Operational Furniture & Equip,4012,2016 / 2017 rental fees for vending machines at the Civic Centre from September 2016 to March 2017,08/02/2017,0000429635,322.09,Revenue,VENDING ENTERPRISES,00101501
South Ribble Council,http://statistics.data.gov.uk/doc/local-authority/30UN,Information Services,Peripherals,4247,"Annual purchase order for link, internet & router for period 01/04/16 - 31/03/17",08/02/2017,0000429688,"1,312.66",Revenue,VODAFONE RE:CABLE & WIRELESS UK,130810
South Ribble Council,http://statistics.data.gov.uk/doc/local-authority/30UN,Information Services,Peripherals,4269,"Annual purchase order for ISDN lines, line rentals & call charges for period 01/04/16 - 31/03/17",08/02/2017,0000429703,"1,204.99",Revenue,VODAFONE RE:CABLE & WIRELESS UK,130810
South Ribble Council,http://statistics.data.gov.uk/doc/local-authority/30UN,Homelessness,Contributions,4730,Payment of bond and rent in advance for AG property at  ADDRESS REDACTED,15/02/2017,0000429912,950.00,Revenue,NAME REDACTED,132179
South Ribble Council,http://statistics.data.gov.uk/doc/local-authority/30UN,HR & Communications,Advertising,4848,WORK CARRIED OUT FOR SOCIAL MEDIA CONCERNS/DEFAMATION,08/02/2017,0000429738,961.30,Revenue,WEIGHTMANS LLP,00120867
South Ribble Council,http://statistics.data.gov.uk/doc/local-authority/30UN,Area 3 - Parks/Leyland East West,Grounds Maint Cntrctrs Chgs,4657,"SUPPLY, ERECT AND REMOVE 8 NO. CHRITMAS TREES IN AGREED LOCATIONS THROUGHOUT THE BOROUGH. ",08/02/2017,0000429756,"8,217.50",Revenue,WESTFIELD TREE SERVICES LTD,00114226
South Ribble Council,http://statistics.data.gov.uk/doc/local-authority/30UN,Revenues Plus,Postage,4291,Mail Services Revs,10/02/2017,0000429833,263.79,Revenue,WHISTL  UK LTD,131310
South Ribble Council,http://statistics.data.gov.uk/doc/local-authority/30UN,Revenues Plus,Postage,4291,Mail Services Revs,15/02/2017,0000429927,274.90,Revenue,WHISTL  UK LTD,131310
South Ribble Council,http://statistics.data.gov.uk/doc/local-authority/30UN,Revenues Plus,Postage,4291,Revenues Mail Services Feb 17,24/02/2017,0000430153,263.05,Revenue,WHISTL  UK LTD,131310
South Ribble Council,http://statistics.data.gov.uk/doc/local-authority/30UN,Environmental Health,External Contractors Charges,4570,Door as per Quotation for ADDRESS REDACTED,01/02/2017,0000429372,"1,560.80",Revenue,WILLIAM M SNAPE MANUFACTURING SERVICES UK LTD,132034
South Ribble Council,http://statistics.data.gov.uk/doc/local-authority/30UN,Environmental Health,External Contractors Charges,4570,Door as per Quotation for ADDRESS REDACTED,01/02/2017,0000429373,"1,560.80",Revenue,WILLIAM M SNAPE MANUFACTURING SERVICES UK LTD,132034
South Ribble Council,http://statistics.data.gov.uk/doc/local-authority/30UN,Environmental Health,External Contractors Charges,4570,Door as per Quotation for ADDRESS REDACTED,15/02/2017,0000429657,"4,132.60",Revenue,WILLIAM M SNAPE MANUFACTURING SERVICES UK LTD,132034
South Ribble Council,http://statistics.data.gov.uk/doc/local-authority/30UN,Area 3 - Parks/Leyland East West,Capital Expenditure,C230,"DRAINAGE WORKS BETWEEN FROMAL GARDENS AND SHAW BROOK, WORDEN PARK LEYLAND",24/02/2017,0000430109,"12,375.00",Revenue,WILLIAM PYE LTD,00031590
South Ribble Council,http://statistics.data.gov.uk/doc/local-authority/30UN,Property Services,Rep & Maint Premises,2020,REF RE/JL External Bin Store to front building - ADDRESS REDACTED as per quote 14.12.2016,01/02/2017,0000429552,"1,595.00",Revenue,Wright Build Limited,131203
South Ribble Council,http://statistics.data.gov.uk/doc/local-authority/30UN,HR & Communications,Training Expense-Course Fees,1408,DECEMBER 2016 ACTIVITY,10/02/2017,0000429782,300.00,Revenue,WRIGHTINGTON WIGAN & LEIGH NHS FOUNDATION TRUST,131288
South Ribble Council,http://statistics.data.gov.uk/doc/local-authority/30UN,HR & Communications,Training Expense-Course Fees,1408,NOVEMBER 2016 ACTIVITY - INCLUDING FLU VACCINATIONS,17/02/2017,0000429783,953.00,Revenue,WRIGHTINGTON WIGAN & LEIGH NHS FOUNDATION TRUST,131288
South Ribble Council,http://statistics.data.gov.uk/doc/local-authority/30UN,HR & Communications,Training Expense-Course Fees,1408,questionaire,17/02/2017,0000429783,39.00,Revenue,WRIGHTINGTON WIGAN & LEIGH NHS FOUNDATION TRUST,131288
South Ribble Council,http://statistics.data.gov.uk/doc/local-authority/30UN,Neighbourhood Admin & Support,Clothing- Uniforms & Laundry,4410,BOOTS � ROCKFALL EBONITE - SIZE 7 - ROK461,03/02/2017,0000429633,76.00,Revenue,Yeshili Relective Material T/A VIZWEAR,132098
South Ribble Council,http://statistics.data.gov.uk/doc/local-authority/30UN,Neighbourhood Admin & Support,Clothing- Uniforms & Laundry,4410,BOOTS � ROCKFALL EBONITE -SIZE 8 - ROK461,03/02/2017,0000429633,152.00,Revenue,Yeshili Relective Material T/A VIZWEAR,132098
South Ribble Council,http://statistics.data.gov.uk/doc/local-authority/30UN,Neighbourhood Admin & Support,Clothing- Uniforms & Laundry,4410,BOOTS � ROCKFALL EBONITE - SIZE 9 - ROK461,03/02/2017,0000429633,152.00,Revenue,Yeshili Relective Material T/A VIZWEAR,132098
South Ribble Council,http://statistics.data.gov.uk/doc/local-authority/30UN,Neighbourhood Admin & Support,Clothing- Uniforms & Laundry,4410,BOOTS � ROCKFALL EBONITE -SIZE 10 - ROK461,03/02/2017,0000429633,190.00,Revenue,Yeshili Relective Material T/A VIZWEAR,132098
South Ribble Council,http://statistics.data.gov.uk/doc/local-authority/30UN,Neighbourhood Admin & Support,Clothing- Uniforms & Laundry,4410,BOOTS � ROCKFALL EBONITE - SIZE 11 - ROK461,03/02/2017,0000429633,76.00,Revenue,Yeshili Relective Material T/A VIZWEAR,132098
South Ribble Council,http://statistics.data.gov.uk/doc/local-authority/30UN,Neighbourhood Admin & Support,Clothing- Uniforms & Laundry,4410,BOOTS � ROCKFALL EBONITE - SIZE 12  - ROK461,03/02/2017,0000429633,76.00,Revenue,Yeshili Relective Material T/A VIZWEAR,132098
